Cogmind - Beta 17.1 @@@ ROGUE MODE // 2026.09.18 @ 15:12:26 Player: the Result: Destroyed by V810-p with Compact Linear Accelerator Performance ------------- Evolutions (8) 4000 Regions Visited (30) 6000 Robots Destroyed (476) 2380 Value Destroyed (18265) 18265 Prototype IDs (148) 2960 Alien Tech Used (2) 400 Bonus (9391) 9391 TOTAL SCORE: 43396 Bonus ------- High Alert Combat Kills 1385 Follower Combat Kills 1928 Network Hubs Disabled 200 Registered with UFD 300 Met Optimus in HQ 500 Met Data Miner 300 Met Warlord at Base 500 MAIN.C Attacked Warlord 500 Warlord Defense Kills 2694 Built Enhanced Grunts 300 A7 Reached Mainframe 300 Met R17 at Cetus 500 Met R17 at Research 2000 Met Optimus at Protoforge 1000 Friendly Fire -3016 Cogmind --------- Core Integrity 0/1450 Matter 67/300 Energy 99/100 System Corruption 11% Temperature Cool (0) Movement Core (50) Location -2/Protoforge Parts ------- > --- POWER (3) -------- (None) > --- PROPULSION (6) --- (None) > --- UTILITY (11) ----- (None) > --- WEAPON (3) ------- (None) > --- INVENTORY (5) ---- Experimental Heat Sink Concept Chromion Battery (800) Concept Chromion Battery (800) Concept NT7 Matterbank (0) Experimental Core Analyzer Peak State ------------ > --- POWER ------------ Improved Quantum Reactor Improved Quantum Reactor > --- PROPULSION ------- Experimental VSS Leg Experimental VSS Leg Experimental VSS Leg Experimental VSS Leg Experimental Surge Thruster Experimental Surge Thruster > --- UTILITY ---------- Concept Antigrav Storage Unit Experimental Energy Well Spectral Analyzer Advanced Signal Interpreter Experimental Melee Analysis Suite Experimental Core Analyzer Experimental Armor Integrity Analyzer Experimental Kinecellerator Graphene Brace Ghost Barrier > --- WEAPON ----------- Concept XC Strikerail Omega Cannon > --- INVENTORY -------- Experimental Heat Sink Concept Chromion Battery Concept Chromion Battery Concept NT7 Matterbank Experimental Core Analyzer Concept Recoil Nullifier Experimental Kinecellerator Experimental EM Shield Compact HERF Cannon [Rating: 217] Favorites ----------- Power Light Antimatter Reactor Engine Heavy Ion Engine Power Core Micro Fission Core Reactor Light Antimatter Reactor Propulsion Aerolev Unit Treads Light Treads Leg Enhanced Armored Leg Wheel Wheel Hover Unit Aerolev Unit Flight Unit Experimental Surge Thruster Utility Large Storage Unit Device Seismic Detector Storage Large Storage Unit Processor Advanced Signal Interpreter Hackware Advanced Hacking Suite Protection Medium Regenerative Plating Weapon Improved Assault Rifle Energy Gun Vortex Rifle Energy Cannon Enhanced Nova Cannon Ballistic Gun Improved Assault Rifle Ballistic Cannon Hypervelocity Gauss Cannon Launcher Grenade Launcher Special Weapon CPS Tube Impact Weapon Impact Mace Slashing Weapon Katana Piercing Weapon Plasma Lance Special Melee Weapon Advanced Datajack Build | -11 -10 -10 -9 -9 -9 -8 -8 -8 -8 -8 -6 -6 -6 -6 -5 -5 -5 -5 -5 -5 -4 -4 -4 -4 -3 -3 -3 -2 -2 -2 ------- Run | Yrd Mat Min Mat Min Exi Min Mat Sto Rec Scr Fac Low Low Dat Pro Fac Ext Cet Arc Hub Fac Upp Upp War Pro Res Tes Res Qua Frg Slots Evolved 16 | . . . 2 . . . 2 . . . 4 . . . . 2 . . . . 2 . . . . 2 . 2 . . Power 2 | . . . . . . . . . . . 1 . . . . . . . . . . . . . . . . 1 . . Propulsion 4 | . . . 1 . . . 1 . . . 1 . . . . 1 . . . . . . . . . . . . . . Utility 9 | . . . 1 . . . 1 . . . 2 . . . . 1 . . . . 2 . . . . 2 . . . . Weapon 1 | . . . . . . . . . . . . . . . . . . . . . . . . . . . . 1 . . Parts Attached 352 | 7 6 . 28 6 1 5 39 30 1 5 15 2 2 . . 29 6 11 3 6 30 2 3 23 3 24 23 7 17 18 Power 45 | 1 1 . 4 . . 2 4 3 1 1 3 . . . . 3 . 2 . 1 3 . . 4 . 4 3 . 2 3 Engine 12 | 1 1 . 4 . . . 2 3 1 . . . . . . . . . . . . . . . . . . . . . Core 13 | . . . . . . 2 2 . . 1 3 . . . . 3 . . . 1 1 . . . . . . . . . Reactor 20 | . . . . . . . . . . . . . . . . . . 2 . . 2 . . 4 . 4 3 . 2 3 Propulsion 92 | 2 . . 13 1 . 1 13 11 . 1 3 . . . . 7 1 2 . 2 13 . . 7 . 2 5 . 2 6 Treads 33 | 2 . . 13 . . 1 12 5 . . . . . . . . . . . . . . . . . . . . . . Leg 25 | . . . . . . . 1 . . . . . . . . . . . . . 11 . . 6 . 2 1 . . 4 Wheel 1 | . . . . 1 . . . . . . . . . . . . . . . . . . . . . . . . . . Hover 29 | . . . . . . . . 4 . 1 3 . . . . 7 1 2 . 2 2 . . 1 . . 4 . 2 . Flight 4 | . . . . . . . . 2 . . . . . . . . . . . . . . . . . . . . . 2 Utility 134 | 2 2 . 5 1 1 1 14 6 . 3 7 2 . . . 16 3 5 1 2 10 2 1 7 2 13 7 6 8 7 Device 68 | 1 1 . 3 1 . 1 5 3 . . 3 1 . . . 9 1 2 1 1 6 1 1 3 1 8 4 5 5 1 Storage 14 | 1 1 . . . 1 . 3 . . . 1 . . . . . . 1 . . . . . . . 1 3 . 1 1 Processor 20 | . . . . . . . 1 . . 2 . 1 . . . 2 . . . . 2 . . 2 1 4 . . 1 4 Hackware 12 | . . . . . . . 2 1 . . 1 . . . . 4 . . . 1 1 . . . . . . 1 1 . Protection 20 | . . . 2 . . . 3 2 . 1 2 . . . . 1 2 2 . . 1 1 . 2 . . . . . 1 Artifact . | . . . . . . . . . . . . . . . . . . . . . . . . . . . . . . . Weapon 81 | 2 3 . 6 4 . 1 8 10 . . 2 . 2 . . 3 2 2 2 1 4 . 2 5 1 5 8 1 5 2 Energy Gun 14 | . . . 3 1 . . . 2 . . . . . . . . . 1 . . . . . 3 . . 4 . . . Energy Cannon 15 | . . . . . . . . 2 . . . . . . . 1 . . . . 2 . 1 2 . 2 1 1 3 . Ballistic Gun 18 | 2 . . 3 2 . . 3 3 . . . . . . . . . . 1 . . . . . . . 2 . . 2 Ballistic Cannon 10 | . . . . . . . 2 . . . . . . . . 2 2 . . 1 . . 1 . . 1 1 . . . Launcher 13 | . 3 . . 1 . 1 1 1 . . . . 1 . . . . . . . 1 . . . 1 2 . . 1 . Special Weapon 2 | . . . . . . . 1 . . . . . . . . . . 1 . . . . . . . . . . . . Impact Weapon 2 | . . . . . . . . . . . 1 . . . . . . . . . . . . . . . . . 1 . Slashing Weapon 5 | . . . . . . . 1 2 . . 1 . 1 . . . . . . . . . . . . . . . . . Piercing Weapon 1 | . . . . . . . . . . . . . . . . . . . . . 1 . . . . . . . . . Special Melee Weapon 1 | . . . . . . . . . . . . . . . . . . . 1 . . . . . . . . . . . Unidentified Prototypes 71 | . . . 4 . . . 2 6 . . 1 . . . . . . 6 . . 6 . . 9 1 11 8 1 9 7 Parts Lost 68 | . . . 2 1 . 1 7 6 . . . . . . . 4 1 1 . 4 3 . . 1 1 5 6 2 1 22 Power 10 | . . . . . . . 2 1 . . . . . . . 1 . . . 1 . . . . . . 2 . 1 2 Propulsion 21 | . . . 1 . . 1 3 2 . . . . . . . 1 . . . 1 1 . . . . 2 1 1 . 7 Utility 26 | . . . 1 1 . . 1 3 . . . . . . . 2 1 1 . . 2 . . . 1 1 2 1 . 9 Weapon 11 | . . . . . . . 1 . . . . . . . . . . . . 2 . . . 1 . 2 1 . . 4 Highest Loss Streak 12 | . . . 1 1 . 1 2 4 . . . . . . . 3 1 1 . 2 1 . . 1 1 4 4 1 1 12 To Critical Strikes . | . . . . . . . . . . . . . . . . . . . . . . . . . . . . . . . Average Backups 14 | 3 11 14 14 14 14 14 17 19 20 19 14 14 14 14 14 12 12 11 12 10 13 14 14 13 12 18 18 12 12 7 Power . | 1 1 1 1 1 1 1 . . . 1 . . . . . . . . . . . 1 1 . . 1 1 . . . Propulsion 3 | 1 2 3 4 5 5 4 3 8 11 9 6 6 6 6 6 3 3 2 3 1 . 1 1 1 2 2 2 . . . Utility 5 | . 3 4 3 4 4 4 6 3 2 3 2 3 3 4 4 4 3 4 6 6 8 8 8 8 5 8 8 7 8 5 Weapon 4 | . 4 6 4 4 4 4 6 6 6 6 4 4 3 3 3 3 4 4 3 2 2 4 4 2 5 6 6 4 3 1 Tool/Special . | . . . . . . . . . . . . . . . . . . . . . . . . . . . . . . . Unused Backups 86 | . 2 2 17 . . . 14 3 . 5 4 1 1 . . 1 1 2 . . 4 2 . 6 . 5 2 1 1 12 Power 5 | . . . 3 . . . . . . . . . . . . . . . . . . . . 1 . . . 1 . . Propulsion 11 | . . . 3 . . . 2 . . 4 1 . . . . . . . . . . . . 1 . . . . . . Utility 48 | . 1 2 5 . . . 6 2 . 1 . . 1 . . . 1 2 . . 4 2 . 3 . 4 2 . 1 11 Weapon 20 | . 1 . 6 . . . 5 1 . . 3 1 . . . 1 . . . . . . . 1 . 1 . . . . Tool/Special 2 | . . . . . . . 1 . . . . . . . . . . . . . . . . . . . . . . 1 Average Slot Usage (%) 93 | . 100 100 98 96 79 99 98 99 99 100 93 93 93 93 93 88 83 85 87 84 91 99 100 96 92 91 83 78 75 68 Engine 4 | . 14 14 11 10 11 4 5 8 9 5 . . . . . . . . . . . . . . . . . . . . Core 2 | . . . . . . 6 3 . . 3 12 13 13 13 13 10 11 8 . 1 2 . . . . . . . . . Reactor 2 | . . . . . . . . . . . . . . . . . . 2 11 9 6 10 10 9 5 7 6 8 6 5 Treads 13 | . 28 28 32 32 33 32 35 30 . . . . . . . . . . . . . . . . . . . . . . Leg 6 | . . . . . . . . . . . . . . . . . . . . . 17 31 31 30 31 26 16 . . 8 Hover 9 | . . . . . . . . 5 36 36 26 26 26 26 26 27 23 23 23 23 8 . . . . . 4 17 14 4 Device 15 | . 14 14 20 18 22 22 15 16 17 12 6 12 12 13 13 10 12 16 17 15 14 14 15 12 13 16 19 17 12 6 Storage 7 | . 14 14 11 11 11 11 9 9 9 9 6 6 6 6 6 5 5 5 5 5 5 5 5 5 5 4 4 4 4 6 Processor 8 | . . . . . . . 7 1 . 5 13 13 13 13 13 11 11 11 11 9 10 15 15 15 16 17 19 17 17 16 Hackware 3 | . . . . . . . 2 4 . . 5 6 6 6 6 7 3 . . 2 8 5 5 5 5 3 . 3 7 6 Protection 3 | . . . . . . . . 3 9 9 5 . . . . 2 5 5 5 4 5 5 4 4 5 4 3 4 4 1 Energy Cannon 2 | . . . . . . . . . . . . . . . . . . . . . 6 9 10 9 6 8 3 1 6 2 Ballistic Gun 6 | . 17 22 18 20 2 11 10 15 . . . . . . . . . . . . . . . . . . . . . 1 Ballistic Cannon 1 | . . . . . . . 5 . . . . . . . . 4 7 8 6 6 1 . . . . . . 2 . 1 Slashing Weapon 2 | . . . . . . . . 2 18 18 12 13 12 13 13 1 . . . . . . . . . . . . . . Peak Build Rating 217 | 7 9 9 21 21 21 22 41 46 43 44 66 66 65 65 65 90 95 115 113 115 131 131 130 146 144 172 175 184 193 217 Average Rating 75 | 2 8 8 16 20 15 20 35 38 42 43 63 64 64 65 65 80 92 100 111 110 125 130 129 134 140 159 160 168 167 157 On Entrance 79 | . 7 9 9 21 21 21 21 41 43 43 44 66 65 65 65 65 88 94 113 111 112 131 130 130 142 136 171 167 150 189 Avg Prop Armor Cover (%) 9 | . . . . . . . . . . . . . . . . . . . 14 . 8 . . . . . . . . 8 Naked Turns 34 | . . . . . . . . . . . . . . . . . . . . . . . . . . . . . . 34 Heaviest Build 152 | 13 32 32 38 36 36 36 64 72 71 64 48 48 52 47 40 56 60 65 71 71 88 82 80 98 92 152 150 89 86 104 Greatest Support 153 | 40 40 40 69 69 69 69 107 90 32 32 49 49 49 49 49 66 72 76 76 79 150 145 145 153 143 153 136 85 84 104 Greatest Overweight (x) 20 | 1 . . . . . . . 2 2 1 . . 1 . . . . 1 20 . 2 . . . . 1 2 1 1 . Average Overweight (x) . | . . . . . . . . . 1 1 . . . . . . . . 6 . . . . . . . . . . . Largest Inventory Capacity 25 | 8 15 15 15 15 15 15 20 20 20 20 20 15 15 15 15 15 15 15 15 15 15 15 15 15 15 25 25 15 15 25 Average Capacity 16 | 5 14 15 15 15 15 15 17 20 20 20 15 15 15 15 15 15 15 15 15 15 15 15 15 15 15 22 22 15 15 14 Most Carried 25 | 5 15 15 15 15 15 15 20 20 20 20 19 15 15 15 15 15 15 15 15 15 15 15 15 15 15 25 25 15 15 15 Average Carried 15 | 3 11 14 14 14 14 14 17 19 19 19 15 15 15 15 15 14 14 14 14 12 14 14 15 14 14 21 21 14 14 8 Final Capacity 25 | 8 15 15 15 15 15 15 20 20 20 20 15 15 15 15 15 15 15 15 15 15 15 15 15 15 15 25 15 15 15 5 Final Carried 25 | 2 15 15 15 14 14 15 20 20 20 20 15 15 15 15 15 15 15 15 15 8 15 15 15 15 14 25 15 15 15 5 Class Distribution -------------------- 29% | Mutant 23% | Scavenger-Mutant 12% | Commander-Mutant 11% | Scavenger-Skirmisher 6% | Scavenger-Gladiator 3% | Skirmisher 3% | Scavenger-Scout Dominant Class ---------------- Mutant | -10/Materials Mutant | -10/Mines Scavenger-Mutant | -9/Materials Mutant | -9/Mines Mutant | -9/Exiles Scavenger-Mutant | -8/Mines Mutant | -8/Materials Scavenger-Mutant | -8/Storage Mutant | -8/Recycling Commander-Mutant | -8/Scraptown Scavenger-Gladiator | -6/Factory Scavenger-Gladiator | -6/Lower Caves Scavenger-Gladiator | -6/Lower Caves Scavenger-Gladiator | -6/Data Miner Scavenger-Gladiator | -5/Proximity Caves Mutant | -5/Factory Mutant | -5/Extension Commander-Mutant | -5/Cetus Commander-Mutant | -5/Archives Scavenger-Mutant | -5/Hub_04(d) Scavenger-Skirmisher | -4/Factory Scavenger-Skirmisher | -4/Upper Caves Scavenger-Skirmisher | -4/Upper Caves Commander-Mutant | -4/Warlord Skirmisher | -3/Proximity Caves Scavenger-Skirmisher | -3/Research Scavenger-Skirmisher | -3/Testing Scavenger-Scout | -2/Research Hacker-Scout | -2/Quarantine Scavenger-Gunner | -2/Protoforge Resources | -11 -10 -10 -9 -9 -9 -8 -8 -8 -8 -8 -6 -6 -6 -6 -5 -5 -5 -5 -5 -5 -4 -4 -4 -4 -3 -3 -3 -2 -2 -2 ----------- Run | Yrd Mat Min Mat Min Exi Min Mat Sto Rec Scr Fac Low Low Dat Pro Fac Ext Cet Arc Hub Fac Upp Upp War Pro Res Tes Res Qua Frg Matter Collected 16129 | 209 319 327 1378 738 13 235 2427 1405 51 40 200 20 180 . 20 1126 811 475 142 865 1113 138 70 405 579 735 581 428 603 496 Remotely 438 | . . . . . . . . . . . . . . . . 260 . . . . . . . . 178 . . . . . Salvage Created 19333 | 186 381 426 1572 524 . 437 2626 1532 . . 218 . 136 . . 1201 1479 128 283 731 1639 496 161 1150 572 717 1247 421 817 253 Parts 953 | 18 41 29 103 29 . 23 155 75 . . 18 . 12 . . 49 29 20 12 32 60 22 . 52 22 31 62 15 37 7 Haulers Intercepted 30 | . 2 . 5 . . . 6 6 . . 1 . . . . 1 . . . 2 2 . . . . 2 1 2 . . Recyclers Shooed 21 | . . 1 3 1 . . 2 6 . . . . . . . 4 1 . . 1 1 . . . . . . 1 . . Parts Field Recycled . | . . . . . . . . . . . . . . . . . . . . . . . . . . . . . . . Retrieved Matter . | . . . . . . . . . . . . . . . . . . . . . . . . . . . . . . . Parts Self-Destructed 32 | . . . . . . . . . . . . . 8 . . . . . . . . 15 . . 9 . . . . . Prevented 14 | . . . . . . . . . . . . . . . . . . . . . . 7 1 . 6 . . . . . Parts Restored . | . . . . . . . . . . . . . . . . . . . . . . . . . . . . . . . Kills | -11 -10 -10 -9 -9 -9 -8 -8 -8 -8 -8 -6 -6 -6 -6 -5 -5 -5 -5 -5 -5 -4 -4 -4 -4 -3 -3 -3 -2 -2 -2 ------- Run | Yrd Mat Min Mat Min Exi Min Mat Sto Rec Scr Fac Low Low Dat Pro Fac Ext Cet Arc Hub Fac Upp Upp War Pro Res Tes Res Qua Frg Combat Hostiles Destroyed 324 | . 8 7 25 19 . 13 47 25 . . 1 . 8 . . 15 18 2 3 7 25 6 . 18 22 8 21 2 11 13 Melee 12 | . . . . . . . 6 1 . . 1 . 1 . . 3 . . . . . . . . . . . . . . Guns 107 | . 3 3 25 6 . 7 23 21 . . . . . . . . . . . . . . . . 2 1 9 . . 7 Cannons 115 | . . . . . . . 8 . . . . . . . . 8 18 2 3 7 18 4 . 18 . 7 6 2 9 5 AOE 83 | . 5 4 . 13 . 6 10 3 . . . . 7 . . 4 . . . . 6 2 . . 18 . 4 . 1 . Classes Destroyed 30 | 2 8 . 1 1 . 1 3 3 . . 1 . . . . . 1 . . 1 . 1 . 2 1 . . . 1 3 Worker 21 | . 1 . 3 . . 3 3 1 . . 1 . . . . 4 . . . 3 1 . . . . . 1 . . . Builder 18 | . 2 2 . . . . 5 1 . . 1 . . . . 1 1 . . . 2 . . . . . 2 . . 1 Tunneler 20 | 5 1 . 3 4 . 1 3 . . . . . . . . 1 . . . . . . . . . . . 2 . . Hauler 30 | . 2 . 5 . . . 6 6 . . 1 . . . . 1 . . . 2 2 . . . . 2 1 2 . . Recycler 35 | 1 1 4 5 4 . 1 3 . . . . . . . . 4 5 . . 2 3 . . . . . . 2 . . Minesweeper 2 | . . . . . . . . . . . . . . . . . . . . . . 1 1 . . . . . . . Mechanic 3 | . 1 . . . . . 1 1 . . . . . . . . . . . . . . . . . . . . . . Operator 12 | . 3 . 2 . . . 2 1 . . . . . . . 1 . . 1 1 . . . . . . . . 1 . Drone 9 | . . . . . . . . . . . . . . . . . . . . . . . . . . . . . . 9 Watcher 21 | . 2 . 3 . . . 4 1 . . . . . . . 1 3 1 . 2 1 . . . . . 2 . 1 . Swarmer 80 | . 6 . 9 6 . 4 11 . . . . . 7 . . 6 . . . 3 10 . . . 9 1 4 . 4 . Cutter 1 | . . . . . . . . . . . . . . . . . . . . 1 . . . . . . . . . . Saboteur 1 | . . . . . . . . . . . . . . . . . . . . . . . . . 1 . . . . . Grunt 96 | . 2 7 7 . . 8 20 9 . . . . . . . 4 5 . . . 4 6 . 5 5 3 11 . . . Brawler 7 | . . . . . . . 1 2 . . . . . . . . . . . . . . . 2 1 . 1 . . . Duelist 10 | . . . . . . 1 1 2 . . . . . . . . . . . . 1 . . . 4 . 1 . . . Protector 4 | . . . . . . . . 1 . . . . . . . . . . . . . . . 3 . . . . . . Researcher 1 | . . . . . . . . . . . . . . . . . . . . . . . . . . . . . . 1 Sentry 47 | . . . 9 . . . 9 8 . . . . . . . 3 9 . 3 1 3 . . . 1 1 . . . . Demolisher 2 | . . . . . . . . 2 . . . . . . . . . . . . . . . . . . . . . . Specialist 4 | . . . . . . . 4 . . . . . . . . . . . . . . . . . . . . . . . Hunter 12 | . . . . . . . . 1 . . . . 1 . . . 1 . . . 1 . . 2 2 . 2 . . 2 Programmer 27 | . . . . . . . . . . . 1 . . . . 2 . . . 2 6 . . 3 . 3 2 2 6 . Heavy 1 | . . . . . . . 1 . . . . . . . . . . . . . . . . . . . . . . . Behemoth 2 | . . . . . . . . . . . . . . . . . 2 . . . . . . . . . . . . . Cetus Guard 2 | . . . . . . . . . . . . . . . . . . 2 . . . . . . . . . . . . Striker 1 | . . . . . . . . . . . . . . . . . . . . . . . . 1 . . . . . . Executioner 2 | . . . . . . . . . . . . . . . . . . . . . . . . 2 . . . . . . Fortress 1 | . . . . . . . . . . . . . . . . . . . . . . . . . . . . . 1 . V-Series 2 | . . . . . . . . . . . . . . . . . . . . . . . . . . . . . . 2 Packrat 2 | . . . . . . . . . . . . . . . . . . . . . . . 2 . . . . . . . Assembled 13 | . . . . 13 . . . . . . . . . . . . . . . . . . . . . . . . . . Savage 1 | . . . . . . . . . . . . . . . . . 1 . . . . . . . . . . . . . Guerrilla 1 | . . . . . . . . . . . . . . . . . . . 1 . . . . . . . . . . . Best Kill Streak 13 | 5 9 5 6 13 . 4 9 6 . . 2 . 4 . . 5 5 2 4 5 5 4 1 7 9 2 7 4 4 6 Combat Bots Only 13 | . 3 2 5 13 . 4 5 6 . . 1 . 4 . . 4 3 2 3 4 5 4 . 7 9 2 7 2 4 6 Max Kills in Single Turn 5 | 1 4 3 2 2 . 3 2 1 . . 1 . 3 . . 2 2 1 1 3 5 1 1 1 3 1 3 3 1 1 Gunslinging . | . . . . . . . . . . . . . . . . . . . . . . . . . . . . . . . Exploded 5 | . 3 1 . 2 . 2 2 1 . . . . 3 . . 2 . . . . 5 1 . . 3 . 3 . 1 . Melee 1 | . . . . . . . 1 1 . . 1 . 1 . . 1 . . . . . . . . . . . . . . Uniques/NPCs Destroyed 1 | . . . . . . . . . . . . . . . . . . 1 . . . . . . . . . . . . A7 (-5/Cetus) Combat | -11 -10 -10 -9 -9 -9 -8 -8 -8 -8 -8 -6 -6 -6 -6 -5 -5 -5 -5 -5 -5 -4 -4 -4 -4 -3 -3 -3 -2 -2 -2 -------- Run | Yrd Mat Min Mat Min Exi Min Mat Sto Rec Scr Fac Low Low Dat Pro Fac Ext Cet Arc Hub Fac Upp Upp War Pro Res Tes Res Qua Frg Hostile Shots Fired 1679 | . 30 12 105 48 . 34 196 98 . . 28 . 12 . . 88 57 14 . 84 154 29 . 54 72 60 140 35 74 255 Missed 577 | . 13 4 37 12 . 6 54 27 . . 12 . 3 . . 24 26 8 . 23 72 9 . 21 28 20 49 14 19 96 Hits 1102 | . 17 8 68 36 . 28 142 71 . . 16 . 9 . . 64 31 6 . 61 82 20 . 33 44 40 91 21 55 159 Melee 31 | . . . . . . . 2 . . . . . . . . . . . . 12 1 . . . . 2 14 . . . Projectile 1071 | . 17 8 68 36 . 28 140 71 . . 16 . 9 . . 64 31 6 . 49 81 20 . 33 44 38 77 21 55 159 AOE 20 | . . . . 2 . . 1 16 . . . . . . . . . . . . . . . . . 1 . . . . Critical Strikes 68 | . . 2 2 . . 1 4 3 . . . . . . . 3 2 2 1 11 3 2 . 2 . 5 8 1 1 15 Actively Blocked 16 | . . . . . . . . . . . . . . . . . . . . . . . . . . . 1 . 1 14 Part Disruptions 1 | . . . . . . . . . . . . . . . . . . . . 1 . . . . . . . . . . Damage Taken 23520 | . 186 138 823 432 . 377 2401 1538 . . 172 . 185 . . 1179 758 113 28 1512 1420 441 . 814 945 1199 2115 536 1520 4688 Core 3207 | . 38 . 71 60 . 55 299 105 . . 25 . 54 . . 203 68 . . 116 114 . . 61 45 141 364 71 116 1201 Absorbed by Shields 86 | . . . . . . . . . . . . . . . . . 34 52 . . . . . . . . . . . . Redirected to Shielding 225 | . . . . . . . . . . . . . . . . . . . . . . . . . . . . . . 225 Regen/Repaired (Parts) 2331 | . . . . . . . . . . . . . . . . . . . . . 748 71 . 143 136 195 277 214 448 99 Core Remaining (%) 69 | 100 . 84 . . . 53 . . . 26 . . . . 90 . . . . 61 . . . . 80 . 61 . . . Volleys Fired 1514 | 9 35 16 127 43 . 29 172 122 . . . . 5 . . 73 79 24 13 40 160 32 14 121 37 78 127 31 64 63 Largest 2 | 2 2 2 2 2 . 2 2 2 . . . . 1 . . 1 2 2 2 2 1 1 1 1 1 1 2 2 1 2 Hottest 300 | 40 60 60 79 73 . 63 100 50 . . . . 39 . . 60 102 240 102 102 120 120 120 120 160 120 134 160 120 300 Shots Fired 2094 | 18 63 32 253 76 . 58 325 232 . . . . 5 . . 72 97 33 20 64 159 32 15 121 37 78 142 32 65 65 Gun 1047 | 18 50 20 253 66 . 41 251 229 . . . . . . . . . 1 6 . . . . . 11 13 59 1 . 28 Cannon 945 | . . . . . . . 60 . . . . . . . . 67 97 30 14 64 159 25 15 121 15 65 81 31 64 37 Launcher 100 | . 13 12 . 10 . 17 14 3 . . . . 5 . . 5 . . . . . 7 . . 11 . 2 . 1 . Special 2 | . . . . . . . . . . . . . . . . . . 2 . . . . . . . . . . . . Kinetic 1363 | 18 50 20 225 65 . 41 301 229 . . . . . . . 67 97 30 20 64 42 . . . . . 28 19 . 47 Thermal 520 | . . . 28 . . . . . . . . . . . . . . 1 . . 109 25 14 121 2 65 71 12 64 8 Explosive 93 | . 13 12 . 10 . 17 14 3 . . . . 5 . . 5 . . . . . . . . 11 . 2 . 1 . Electromagnetic 60 | . . . . 1 . . 10 . . . . . . . . . . . . . 8 7 1 . 13 . 10 . . 10 Entropic 56 | . . . . . . . . . . . . . . . . . . . . . . . . . 11 13 31 1 . . Robot Hit Streak 22 | 8 7 13 21 7 . 12 15 8 . . . . . . . 11 16 18 10 12 19 6 2 10 17 12 15 5 11 22 Robot Miss Streak 8 | 1 5 1 6 5 . 2 4 3 . . . . . . . 4 3 2 2 3 4 2 1 4 8 4 4 2 3 3 Penetration Max 2 | . . . . . . . . . . . . . . . . . 1 1 1 1 . . . . . . 2 . . 1 Secondary Targets 11 | . 2 . 3 . . 1 3 1 . . . . . . . . . . . . . . . . . . 1 . . . Max Gunslinging Chain 1 | . 1 . 1 . . 1 1 1 . . . . . . . . . . . . . . . . . . 1 . . . Capacitor 360 | . . . . . . . . . . . . . . . . . . . . . 42 15 . 115 20 78 90 . . . Shots Hit Robots 1356 | 13 32 23 156 36 . 41 233 168 . . 14 . 6 . . 56 86 28 20 43 78 13 6 70 17 44 86 11 29 47 Core Hits 799 | 7 34 23 66 41 . 32 116 65 . . 4 . 9 . . 35 56 18 8 25 43 10 2 31 50 20 66 5 15 18 Critical Kills 39 | . . . . . . 1 . . . . . . . . . 7 8 2 3 8 2 . . . . . 6 . . 2 Critical Parts Destroyed 51 | . . . 2 . . . . 1 . . . . . . . 10 6 7 3 12 . . . . . . 6 . . 4 Critical Strikes 122 | . . . 5 . . 1 3 1 . . 1 . 3 . . 19 21 12 7 22 4 . . . 1 . 12 1 . 9 Burn 3 | . . . 3 . . . . . . . . . . . . . . . . . . . . . . . . . . . Meltdown 4 | . . . . . . . . . . . . . . . . . . . . . 2 . . . . . 2 . . . Destroy 86 | . . . 2 . . 1 . 1 . . . . . . . 15 15 11 7 20 . . . . . . 8 . . 6 Blast 16 | . . . . . . . . . . . . . . . . 1 6 1 . 2 2 . . . . . . 1 . 3 Corrupt 1 | . . . . . . . . . . . . . . . . . . . . . . . . . 1 . . . . . Smash 2 | . . . . . . . . . . . . . . . . 2 . . . . . . . . . . . . . . Sever 8 | . . . . . . . 3 . . . 1 . 3 . . 1 . . . . . . . . . . . . . . Detonate 2 | . . . . . . . . . . . . . . . . . . . . . . . . . . . 2 . . . Melee Attacks 182 | . . . . . . . 20 18 . . 41 10 20 . 15 37 . . 6 14 . . . . . . . . 1 . Kinetic 1 | . . . . . . . . . . . . . . . . . . . . . . . . . . . . . 1 . Impact 28 | . . . . . . . . . . . . . . . . 14 . . . 14 . . . . . . . . . . Slashing 147 | . . . . . . . 20 18 . . 41 10 20 . 15 23 . . . . . . . . . . . . . . Piercing . | . . . . . . . . . . . . . . . . . . . . . . . . . . . . . . . Sneak Attacks 27 | . . . . . . . 3 8 . . 3 . 1 . . 6 . . 6 . . . . . . . . . . . Combat Hostiles 1 | . . . . . . . . . . . . . 1 . . . . . . . . . . . . . . . . . Follow-up Attacks 6 | . . . . . . . . . . . 3 . 1 . . 2 . . . . . . . . . . . . . . Damage Inflicted 53506 | 174 875 920 2293 1259 . 1416 5675 3894 . . 666 . 674 . . 3019 3926 1080 308 1677 5013 815 261 3247 3793 2045 4410 1318 1432 3316 Guns 13105 | 174 334 204 2211 556 . 450 3107 2704 . . . . . . . . . . 136 . . . . . 389 377 1496 . . 967 Cannons 25159 | . . . . . . . 796 . . . . . . . . 1590 3918 1080 172 1340 4169 423 261 3247 218 1656 1660 999 1288 2342 Explosions 11759 | . 528 696 . 680 . 940 1168 439 . . . . 396 . . 581 . . . 232 844 392 . . 3186 . 1244 289 144 . Melee 3040 | . . . . . . . 503 640 . . 666 . 278 . . 848 . . . 105 . . . . . . . . . . Ramming 443 | . 13 20 82 23 . 26 101 111 . . . . . . . . 8 . . . . . . . . 12 10 30 . 7 Kinetic 23402 | 174 334 204 1948 556 . 450 3717 2704 . . . . . . . 1590 3918 1080 308 1340 1482 . . . . . 273 871 . 2453 Thermal 13471 | . . 109 263 . . . . . . . . . . . . . . . . . 3387 423 261 3247 . 1656 2065 128 1288 644 Explosive 9521 | . 528 587 . 680 . 940 1168 439 . . . . 396 . . 581 . . . . . . . . 3186 . 583 289 144 . Electromagnetic 1640 | . . . . . . . 186 . . . . . . . . . . . . 232 144 392 . . 218 . 256 . . 212 Impact 417 | . . . . . . . . . . . . . . . . 312 . . . 105 . . . . . . . . . . Slashing 2623 | . . . . . . . 503 640 . . 666 . 278 . . 536 . . . . . . . . . . . . . . Piercing . | . . . . . . . . . . . . . . . . . . . . . . . . . . . . . . . Entropic 1989 | . . . . . . . . . . . . . . . . . . . . . . . . . 389 377 1223 . . . Highest Corruption 11 | . . . 5 5 5 5 1 . . . . . . . . 4 . . . 6 3 3 3 3 1 2 8 2 10 11 Average Corruption 3 | . . . 5 5 5 5 1 . . . . . . . . 3 . . . 2 1 3 3 1 1 1 4 1 5 10 Corruption Purged 6 | . . . . . . . 1 . . . . . . . . 4 . . . . . . . . 1 . . . . . Corruption Blocked . | . . . . . . . . . . . . . . . . . . . . . . . . . . . . . . . Effects 243 | . . . 42 26 12 15 3 . . . . . . . . 11 . . . 18 16 17 8 3 7 3 18 . 21 23 Message Errors 45 | . . . 4 4 2 2 2 . . . . . . . . 4 . . . 5 2 6 . . 2 1 4 . 5 2 Matter Fused 69 | . . . 15 10 5 5 . . . . . . . . . 1 . . . 3 3 4 1 2 2 . 5 . 9 4 Heat Flow Errors 33 | . . . 5 3 1 1 . . . . . . . . . 4 . . . 5 2 2 2 . 2 1 2 . 2 1 Energy Discharges 24 | . . . 3 3 1 1 . . . . . . . . . 1 . . . . 2 2 . 1 . 1 3 . 2 4 Parts Rejected 3 | . . . 2 1 . . . . . . . . . . . . . . . . . . . . . . . . . . Parts Fused 2 | . . . . . 1 . . . . . . . . . . . . . . . . . 1 . . . . . . . Data Loss (minor) 39 | . . . 7 5 1 4 . . . . . . . . . . . . . 2 3 3 3 . . . 1 . 1 9 Data Loss (major) 7 | . . . 1 . 1 . . . . . . . . . . . . . . 1 . . . . 1 . 2 . 1 . Misfires 8 | . . . 2 . . 1 . . . . . . . . . . . . . 2 . . 1 . . . 1 . 1 . Alerts 5 | . . . 1 . . 1 . . . . . . . . . . . . . . 3 . . . . . . . . . Misdirections 2 | . . . . . . . . . . . . . . . . . . . . . . . . . . . . . . 2 Weapon Failures 6 | . . . 2 . . . 1 . . . . . . . . 1 . . . . 1 . . . . . . . . 1 Overload Shots 1 | . . . . . . . . . . . . . . . . . . 1 . . . . . . . . . . . . Overflow Damage 2514 | . 8 3 . 7 . 35 129 37 . . 119 . . . . 259 52 . . 79 407 7 71 1 164 . 138 377 91 530 Projectiles 1623 | . . . . . . . 16 . . . . . . . . 46 52 . . 46 407 7 71 1 . . 42 314 91 530 Explosions 445 | . 8 3 . 7 . 35 67 . . . . . . . . 2 . . . . . . . . 164 . 96 63 . . Melee 446 | . . . . . . . 46 37 . . 119 . . . . 211 . . . 33 . . . . . . . . . . Knockbacks 100 | . . . . . . 1 . 1 . . . . . . . 29 19 6 . 13 16 . . . . . . 5 . 10 Impact 3 | . . . . . . 1 . 1 . . . . . . . . . . . 1 . . . . . . . . . . Kinetic 89 | . . . . . . . . . . . . . . . . 25 19 6 . 12 13 . . . . . . 5 . 9 Secondary 8 | . . . . . . . . . . . . . . . . 4 . . . . 3 . . . . . . . . 1 Self-Inflicted Damage 653 | . 36 23 . 32 . 6 15 . . . . . 21 . . 45 4 . . 100 . 32 . . . . 135 128 76 . Shots 16 | . 2 1 . 1 . 1 1 . . . . . 1 . . 1 . . . 1 . 2 . . . . 3 1 1 . Rammed 53 | . 1 9 11 4 . 4 13 8 . . . . . . . . 1 . . . . . . . . . . 2 . . Targets Rammed 71 | . 1 10 16 4 . 6 17 10 . . . . . . . . 1 . . . . . . . . 1 2 2 . 1 Kicked 4 | . . . . . . . . . . . . . . . . . . . . . . . . . . 1 2 . . 1 Crushed 14 | . . 1 5 . . 2 4 2 . . . . . . . . . . . . . . . . . . . . . . Highest Temperature 529 | 1 9 42 247 217 106 134 20 231 . . 1 . 12 . . 360 360 226 150 529 355 236 248 200 256 244 199 198 196 188 Average Temperature 86 | 1 9 22 93 105 61 59 5 65 . . 1 . 6 . . 75 98 77 39 96 77 87 50 130 116 101 88 87 82 75 Received Heat Transfer 2745 | . 18 102 264 . . 189 675 342 . . 12 . . . . 180 131 26 . 36 93 121 . 99 69 69 208 18 9 84 Effects 15 | . . . . . . . . . . . . . . . . 4 5 . . 5 . . . 1 . . . . . . Energy Bleed 5 | . . . . . . . . . . . . . . . . 3 . . . 1 . . . 1 . . . . . . Interference 5 | . . . . . . . . . . . . . . . . . 3 . . 2 . . . . . . . . . . Short Circuit 2 | . . . . . . . . . . . . . . . . 1 . . . 1 . . . . . . . . . . Damage (minor) 3 | . . . . . . . . . . . . . . . . . 2 . . 1 . . . . . . . . . . Siege Activations . | . . . . . . . . . . . . . . . . . . . . . . . . . . . . . . . Martial Activations . | . . . . . . . . . . . . . . . . . . . . . . . . . . . . . . . Shielding Activations . | . . . . . . . . . . . . . . . . . . . . . . . . . . . . . . . Robots Disrupted . | . . . . . . . . . . . . . . . . . . . . . . . . . . . . . . . Combat Hostiles . | . . . . . . . . . . . . . . . . . . . . . . . . . . . . . . . Robots Corrupted 7 | . . . . . . . . . . . . . . . . 2 . . . . . 1 . . 2 . 1 1 . . Combat Hostiles 2 | . . . . . . . . . . . . . . . . . . . . . . . . . 2 . . . . . Parts Fried 15 | . . . . . . . 1 . . . . . . . . 4 1 . . 1 . 3 . . 3 . . 1 . 1 Impact Corruptions 8 | . . . . . . . . . . . . . . . . 6 . . . 1 . . . . . . . 1 . . Robots Melted 4 | . . . . . . . . . . . . . . . . . . . . . 2 . . . . . 2 . . . Combat Hostiles 3 | . . . . . . . . . . . . . . . . . . . . . 1 . . . . . 2 . . . Parts Melted 34 | . . . 1 . . . . 2 . . . . . . . . 1 . . . 8 1 1 10 . 1 5 . 4 . Heat Transferred 10964 | . . 100 888 . . . . . . . . . . . . . . . . . 2485 370 222 2603 . 1406 1743 111 999 37 Parts Sabotaged . | . . . . . . . . . . . . . . . . . . . . . . . . . . . . . . . Parts Stolen . | . . . . . . . . . . . . . . . . . . . . . . . . . . . . . . . Parts Stripped 18 | . . . . . . . . . . . . . . . . . . . . . . . . . . . . . 18 . Power Chain Reactions 2 | . . . . . . . . . . . . . . . . . . . . . . . . . . . 2 . . . Alert | -11 -10 -10 -9 -9 -9 -8 -8 -8 -8 -8 -6 -6 -6 -6 -5 -5 -5 -5 -5 -5 -4 -4 -4 -4 -3 -3 -3 -2 -2 -2 ------- Run | Yrd Mat Min Mat Min Exi Min Mat Sto Rec Scr Fac Low Low Dat Pro Fac Ext Cet Arc Hub Fac Upp Upp War Pro Res Tes Res Qua Frg Maximum Alert Level 4 | . . . 1 . . . 2 2 1 . . . . . . 1 1 1 1 4 4 . . . . 1 2 1 2 2 Low Security (%) 58 | 100 100 100 78 100 . 100 49 53 96 . 100 . . . . 42 79 16 68 2 . . . . . 70 55 5 37 . Level 1 16 | . . . 21 . . . 16 8 3 . . . . . . 57 20 83 31 10 . . . . . 29 29 94 3 22 Level 2 15 | . . . . . . . 34 37 . . . . . . . . . . . 21 5 . . . . . 15 . 59 77 Level 3 7 | . . . . . . . . . . . . . . . . . . . . 21 89 . . . . . . . . . Level 4 2 | . . . . . . . . . . . . . . . . . . . . 42 5 . . . . . . . . . Level 5 . | . . . . . . . . . . . . . . . . . . . . . . . . . . . . . . . High Security . | . . . . . . . . . . . . . . . . . . . . . . . . . . . . . . . Max Security . | . . . . . . . . . . . . . . . . . . . . . . . . . . . . . . . Peak Influence 1303 | 20 157 182 306 158 . 176 695 564 201 . 67 . . . . 315 330 318 290 1303 1119 . . . . 263 437 331 596 686 Initial 590 | . 3 29 24 118 . . 28 291 201 . . . . . . . 128 177 96 . 590 . . . . 229 58 236 180 307 Average 272 | 6 75 52 109 53 . 75 282 258 99 . 15 . . . . 172 164 239 143 860 895 . . . . 172 240 276 389 556 Influence Increases 15063 | 30 426 358 975 291 . 385 1562 1225 86 . 211 . 190 . . 690 818 375 234 1731 1275 135 5 452 589 377 776 311 763 793 Destroy 0b10 Robot/C 7060 | . 160 160 540 120 . 260 940 640 20 . 20 . 160 . . 300 460 160 80 500 560 120 . 380 480 200 420 40 220 120 Destroy 0b10 Robot/NC 910 | 30 65 30 105 40 . 25 135 65 . . 25 . . . . 65 50 10 5 65 45 5 5 15 . 10 30 30 10 45 Destroy Leader 1312 | . 38 40 166 10 . 40 250 176 . . 12 . 30 . . 64 46 . . 100 116 10 . . 40 54 64 14 32 10 Allied During Kill 1093 | . . 38 29 . . . . 231 5 . 3 . . . . . 180 170 85 147 39 . . 57 69 30 10 . . . Successful Hack 137 | . . . 14 . . . . 6 6 . 7 . . . . 28 . . . 5 39 . . . . 18 . 14 . . Select Force Hacks 120 | . 30 . 60 . . . . . 30 . . . . . . . . . . . . . . . . . . . . . Disable Machine 1140 | . 45 45 15 . . . 60 75 . . . . . . . 45 . 15 60 240 105 . . . . 15 150 30 120 120 Anti-Garrison Action 300 | . . . . . . . . . . . . . . . . . . . . 150 . . . . . . . . . 150 Destroy Structure 1836 | . 58 45 1 61 . 60 117 17 25 . 24 . . . . 158 52 20 4 254 266 . . . . 50 102 138 231 153 Partial Spotted 165 | . 15 . . . . . . . . . 30 . . . . . 15 . . 15 45 . . . . . . 15 15 15 Lose Combat Pursuer 990 | . 15 . 45 60 . . 60 15 . . 90 . . . . 30 15 . . 255 60 . . . . . . 30 135 180 Influence Decreases 14477 | 25 355 372 733 595 . 311 945 1400 585 17 173 38 98 92 . 428 762 451 476 526 1470 778 372 201 499 614 460 410 537 754 Entered New Map 3612 | . 2 47 38 186 . . 46 400 315 17 . 15 . 92 . . 134 141 146 . 615 374 70 . 251 112 46 184 141 240 Time Decay 8868 | 25 353 305 607 399 . 301 634 590 270 . 159 23 98 . . 408 458 180 310 376 595 404 292 171 238 452 334 206 386 294 Lost Part 640 | . . . 10 10 . 10 60 60 . . . . . . . 20 10 10 . 40 30 . . 10 10 50 60 20 10 220 Lost Ally 852 | . . 20 78 . . . . 200 . . 14 . . . . . 160 120 20 110 80 . 10 20 . . 20 . . . Purge Threat 505 | . . . . . . . 205 150 . . . . . . . . . . . . 150 . . . . . . . . . Squads Dispatched 108 | . 2 . 6 . . 1 8 6 . . 7 . . . . 16 2 . . 12 18 . . . 1 4 8 4 5 8 Investigation 32 | . 1 . 3 . . . . . . . 5 . . . . 8 . . . 1 6 . . . . 3 . 2 . 3 Extermination 17 | . . . . . . . . . . . 1 . . . . 3 . . . 2 5 . . . . . 2 1 2 1 Reinforcement 35 | . 1 . 3 . . 1 7 1 . . 1 . . . . 2 2 . . 3 5 . . . . 1 3 1 2 2 Assault 13 | . . . . . . . 1 2 . . . . . . . . . . . 4 2 . . . 1 . . . 1 2 Garrison 11 | . . . . . . . . 3 . . . . . . . 3 . . . 2 . . . . . . 3 . . . Intercept . | . . . . . . . . . . . . . . . . . . . . . . . . . . . . . . . Searches Triggered . | . . . . . . . . . . . . . . . . . . . . . . . . . . . . . . . Data Miner Redirects 4 | . . . . . . . . . . . . . . . . . . . . . 4 . . . . . . . . . Construction Impeded 9 | . . . . . . 1 . . . . . . . . . 1 2 . . . 3 . . . . . 2 . . . Haulers Reinforced 4 | . . . . . . . . . . . . . . . . . . . . 1 1 . . . . . 1 1 . . Active Scanning Responses . | . . . . . . . . . . . . . . . . . . . . . . . . . . . . . . . Cargo Convoy Interrupts . | . . . . . . . . . . . . . . . . . . . . . . . . . . . . . . . Stealth | -11 -10 -10 -9 -9 -9 -8 -8 -8 -8 -8 -6 -6 -6 -6 -5 -5 -5 -5 -5 -5 -4 -4 -4 -4 -3 -3 -3 -2 -2 -2 --------- Run | Yrd Mat Min Mat Min Exi Min Mat Sto Rec Scr Fac Low Low Dat Pro Fac Ext Cet Arc Hub Fac Upp Upp War Pro Res Tes Res Qua Frg Distress Signals 38 | . . . 4 . . . 6 2 . . . . . . . 1 4 2 . 4 2 . . . . 5 1 2 2 3 Communications Jammed 5 | . . . . . . . . . . . . . . . . 5 . . . . . . . . . . . . . . Distress Signals 5 | . . . . . . . . . . . . . . . . 5 . . . . . . . . . . . . . . Times Spotted 577 | . 21 8 39 24 . 13 67 37 1 . 8 . 5 . . 29 23 10 6 39 33 6 . 80 18 24 28 10 20 28 Peak Tracking Total 15 | . 5 2 5 8 . 3 5 6 . . 3 . 4 . . 7 5 5 2 15 6 4 . 13 5 10 6 5 6 8 Tactical Retreats 38 | . 1 . 2 2 . . 4 1 . . 3 . . . . 2 1 . . 7 3 . . . . . . 2 4 6 Traps | -11 -10 -10 -9 -9 -9 -8 -8 -8 -8 -8 -6 -6 -6 -6 -5 -5 -5 -5 -5 -5 -4 -4 -4 -4 -3 -3 -3 -2 -2 -2 ------- Run | Yrd Mat Min Mat Min Exi Min Mat Sto Rec Scr Fac Low Low Dat Pro Fac Ext Cet Arc Hub Fac Upp Upp War Pro Res Tes Res Qua Frg Traps Triggered 24 | . . . 1 . . . 2 1 . . 1 . . . . 2 5 . . 2 7 . . . . . 2 . 1 . Indirectly . | . . . . . . . . . . . . . . . . . . . . . . . . . . . . . . . Trap Hack Attempts . | . . . . . . . . . . . . . . . . . . . . . . . . . . . . . . . Triggered . | . . . . . . . . . . . . . . . . . . . . . . . . . . . . . . . Disarmed . | . . . . . . . . . . . . . . . . . . . . . . . . . . . . . . . Reprogrammed . | . . . . . . . . . . . . . . . . . . . . . . . . . . . . . . . Reused . | . . . . . . . . . . . . . . . . . . . . . . . . . . . . . . . Traps Extracted . | . . . . . . . . . . . . . . . . . . . . . . . . . . . . . . . Installed . | . . . . . . . . . . . . . . . . . . . . . . . . . . . . . . . Triggered . | . . . . . . . . . . . . . . . . . . . . . . . . . . . . . . . Machines | -11 -10 -10 -9 -9 -9 -8 -8 -8 -8 -8 -6 -6 -6 -6 -5 -5 -5 -5 -5 -5 -4 -4 -4 -4 -3 -3 -3 -2 -2 -2 ---------- Run | Yrd Mat Min Mat Min Exi Min Mat Sto Rec Scr Fac Low Low Dat Pro Fac Ext Cet Arc Hub Fac Upp Upp War Pro Res Tes Res Qua Frg Machines Disabled 87 | . 3 3 1 . . . 4 5 . . . . . . . 3 1 1 4 17 7 . . 1 2 1 12 2 8 12 Max in Single Turn 14 | . 1 1 1 . . . 1 1 . . . . . . . 1 1 1 1 14 4 . . . 2 1 1 1 2 2 Garrison Access 3 | . . . . . . . . . . . . . . . . . . . . 1 . . . . . . . . 1 1 Network Hub 1 | . . . . . . . . . . . . . . . . . . . . 1 . . . . . . . . . . Machines Repaired . | . . . . . . . . . . . . . . . . . . . . . . . . . . . . . . . Machines Dismantled . | . . . . . . . . . . . . . . . . . . . . . . . . . . . . . . . Machines Sabotaged . | . . . . . . . . . . . . . . . . . . . . . . . . . . . . . . . Overloaded Fab Kills . | . . . . . . . . . . . . . . . . . . . . . . . . . . . . . . . Hacking | -11 -10 -10 -9 -9 -9 -8 -8 -8 -8 -8 -6 -6 -6 -6 -5 -5 -5 -5 -5 -5 -4 -4 -4 -4 -3 -3 -3 -2 -2 -2 --------- Run | Yrd Mat Min Mat Min Exi Min Mat Sto Rec Scr Fac Low Low Dat Pro Fac Ext Cet Arc Hub Fac Upp Upp War Pro Res Tes Res Qua Frg Machines Accessed 102 | . 1 . 4 . 1 . 5 4 3 4 12 . 1 2 . 20 . . . 7 14 . . 4 . 6 3 5 3 3 Terminals 35 | . . . . . . . 3 4 1 . 4 . . . . 7 . . . 7 4 . . . . . 2 1 2 . Fabricators 8 | . . . . . . . . . . . 1 . . . . 5 . . . . 1 . . . . 1 . . . . Repair Stations 2 | . . . . . . . . . . . . . . . . . . . . . 2 . . . . . . . . . Recycling Units 29 | . 1 . 2 . . . . . 2 . 5 . . . . 5 . . . . 5 . . . . 3 . 3 . 3 Scanalyzers 15 | . . . 2 . . . 2 . . . 2 . . . . 3 . . . . 2 . . . . 2 1 1 . . Garrison Access 1 | . . . . . . . . . . . . . . . . . . . . . . . . . . . . . 1 . Total Hacks 217 | . 2 . 14 . 1 . 12 6 6 10 16 . 1 19 . 42 . . . 11 28 . . 9 . 12 4 12 5 7 Successful 145 | . 1 . 12 . 1 . 8 4 2 10 11 . 1 19 . 28 . . . 1 18 . . 9 . 9 2 4 3 2 Failed 69 | . 1 . 2 . . . 4 2 4 . 5 . . . . 13 . . . 10 9 . . . . 2 2 8 2 5 Catastrophic 13 | . . . . . . . . 2 . . 1 . . . . . . . . 5 . . . . . . . 3 . 2 Database Lockouts 3 | . . . . . . . . . . . . . . . . 1 . . . . 1 . . . . 1 . . . . Manual 97 | . 2 . 2 . . . 5 2 6 . 10 . . . . 19 . 1 . 7 14 . . 1 . 4 3 11 3 7 Terminals 58 | . . . . . . . 5 6 2 . 4 . . . . 10 . . . 11 8 . . . . . 3 6 3 . Fabricators 22 | . . . . . . . . . . . 2 . . . . 16 . . . . 3 . . . . 1 . . . . Repair Stations 5 | . . . . . . . . . . . . . . . . . . . . . 5 . . . . . . . . . Recycling Units 42 | . 2 . 2 . . . . . 4 . 6 . . . . 6 . . . . 6 . . . . 4 . 5 . 7 Scanalyzers 48 | . . . 12 . . . 7 . . . 4 . . . . 10 . . . . 6 . . . . 7 1 1 . . Garrison Access 2 | . . . . . . . . . . . . . . . . . . . . . . . . . . . . . 2 . Terminal Hacks 58 | . . . . . 1 . 2 4 1 10 2 . 1 19 . 5 . . . . 3 . . 9 . . 1 . . . Record 24 | . . . . . 1 . . . . 9 . . . 6 . . . . . . . . . 8 . . . . . . Part Schematic 11 | . . . . . . . . 1 . . . . . 10 . . . . . . . . . . . . . . . . Prototype ID Bank 3 | . . . . . . . . . . . . . . 3 . . . . . . . . . . . . . . . . Open Door 4 | . . . . . . . . 2 . . . . 1 . . . . . . . . . . 1 . . . . . . Branch Access Points 1 | . . . . . . . . . . . . . . . . . . . . . 1 . . . . . . . . . Recycling Unit Index 1 | . . . . . . . . . . . 1 . . . . . . . . . . . . . . . . . . . Alert Level 3 | . . . . . . . . . . . . . . . . 2 . . . . . . . . . . 1 . . . Unreport Threat 4 | . . . . . . . 2 1 . . . . . . . . . . . . 1 . . . . . . . . . Locate Traps 2 | . . . . . . . . . . . 1 . . . . 1 . . . . . . . . . . . . . . Recall Extermination 2 | . . . . . . . . . . . . . . . . 1 . . . . 1 . . . . . . . . . Zone Layout 2 | . . . . . . . . . 1 . . . . . . 1 . . . . . . . . . . . . . . Proto ID Catalog 1 | . . . . . . . . . . 1 . . . . . . . . . . . . . . . . . . . . Fabricator Hacks 12 | . . . . . . . . . . . 1 . . . . 8 . . . . 2 . . . . 1 . . . . Network Status 4 | . . . . . . . . . . . 1 . . . . 1 . . . . 1 . . . . 1 . . . . Load Schematic 5 | . . . . . . . . . . . . . . . . 5 . . . . . . . . . . . . . . Build 3 | . . . . . . . . . . . . . . . . 2 . . . . 1 . . . . . . . . . Repair Station Hacks 2 | . . . . . . . . . . . . . . . . . . . . . 2 . . . . . . . . . Scan Component 1 | . . . . . . . . . . . . . . . . . . . . . 1 . . . . . . . . . Repair 1 | . . . . . . . . . . . . . . . . . . . . . 1 . . . . . . . . . Recycling Unit Hacks . | . . . . . . . . . . . . . . . . . . . . . . . . . . . . . . . Scanalyzer 34 | . . . 10 . . . 6 . . . 2 . . . . 6 . . . . 3 . . . . 5 1 1 . . Insert Component 10 | . . . 3 . . . 2 . . . 1 . . . . 1 . . . . 2 . . . . 1 . . . . Analyze 10 | . . . 6 . . . 2 . . . . . . . . 2 . . . . . . . . . . . . . . Retrieve Study 14 | . . . 1 . . . 2 . . . 1 . . . . 3 . . . . 1 . . . . 4 1 1 . . Garrison Access Hacks 1 | . . . . . . . . . . . . . . . . . . . . . . . . . . . . . 1 . Seal Access 1 | . . . . . . . . . . . . . . . . . . . . . . . . . . . . . 1 . Unauthorized Hacks 38 | . 1 . 2 . . . . . 1 . 6 . . . . 9 . . . 1 8 . . . . 3 . 3 2 2 Terminals 7 | . . . . . . . . . . . 1 . . . . 1 . . . 1 1 . . . . . . 1 2 . Botnet 7 | . . . . . . . . . . . 1 . . . . 1 . . . 1 1 . . . . . . 1 2 . Fabricators 4 | . . . . . . . . . . . . . . . . 3 . . . . 1 . . . . . . . . . Prioritize 1 | . . . . . . . . . . . . . . . . . . . . . 1 . . . . . . . . . Recompile 3 | . . . . . . . . . . . . . . . . 3 . . . . . . . . . . . . . . Repair Stations 1 | . . . . . . . . . . . . . . . . . . . . . 1 . . . . . . . . . Patch 1 | . . . . . . . . . . . . . . . . . . . . . 1 . . . . . . . . . Recycling Units 26 | . 1 . 2 . . . . . 1 . 5 . . . . 5 . . . . 5 . . . . 3 . 2 . 2 Tunnel 4 | . 1 . 2 . . . . . 1 . . . . . . . . . . . . . . . . . . . . . Fedlink 21 | . . . . . . . . . . . 5 . . . . 5 . . . . 4 . . . . 3 . 2 . 2 Scrapoids 1 | . . . . . . . . . . . . . . . . . . . . . 1 . . . . . . . . . Scanalyzers . | . . . . . . . . . . . . . . . . . . . . . . . . . . . . . . . Garrison Access . | . . . . . . . . . . . . . . . . . . . . . . . . . . . . . . . Data Cores Recovered 5 | . 2 . . . . . . 1 . . . . . . . 1 . . . 1 . . . . . . . . . . Used 2 | . . . . . . . . . . . . . . . . 1 . . . 1 . . . . . . . . . . Hacking Detections 49 | . . . 1 . . . 2 3 2 . 8 . . . . 12 . . . 6 7 . . . . 3 1 2 . 2 Full Trace Events 3 | . . . . . . . . . 1 . . . . . . . . . . 1 . . . . . . . . . 1 Feedback Events 1 | . . . . . . . . . . . . . . . . . . . . 1 . . . . . . . . . . Corruption 1 | . . . . . . . . . . . . . . . . . . . . 1 . . . . . . . . . . Feedback Blocked . | . . . . . . . . . . . . . . . . . . . . . . . . . . . . . . . Robot Schematics Acquired . | . . . . . . . . . . . . . . . . . . . . . . . . . . . . . . . Robots Built . | . . . . . . . . . . . . . . . . . . . . . . . . . . . . . . . Authchips . | . . . . . . . . . . . . . . . . . . . . . . . . . . . . . . . Time . | . . . . . . . . . . . . . . . . . . . . . . . . . . . . . . . Total Robot Build Rating . | . . . . . . . . . . . . . . . . . . . . . . . . . . . . . . . Part Schematics Acquired 15 | . . . 2 . . . 1 1 . . . . . 10 . 1 . . . . . . . . . . . . . . Parts Built 4 | . . . . . . . . . . . . . . . . 2 . . . . 2 . . . . . . . . . Authchips 2 | . . . . . . . . . . . . . . . . 2 . . . . . . . . . . . . . . Time 209 | . . . . . . . . . . . . . . . . 140 . . . . 69 . . . . . . . . . Total Part Build Rating 30 | . . . . . . . . . . . . . . . . 12 . . . . 18 . . . . . . . . . Part Studies Acquired 14 | . . . 1 . . . 2 . . . 1 . . . . 3 . . . . 1 . . . . 4 1 1 . . Parts Repaired 1 | . . . . . . . . . . . . . . . . . . . . . 1 . . . . . . . . . Time 43 | . . . . . . . . . . . . . . . . . . . . . 43 . . . . . . . . . Parts Recycled . | . . . . . . . . . . . . . . . . . . . . . . . . . . . . . . . Recycled Matter . | . . . . . . . . . . . . . . . . . . . . . . . . . . . . . . . Retrieved Matter . | . . . . . . . . . . . . . . . . . . . . . . . . . . . . . . . Retrieved Components . | . . . . . . . . . . . . . . . . . . . . . . . . . . . . . . . Parts Scanalyzed 6 | . . . 3 . . . 1 . . . . . . . . 1 . . . . 1 . . . . . . . . . Part Schematics Acquired 4 | . . . 2 . . . 1 . . . . . . . . 1 . . . . . . . . . . . . . . Parts Damaged 2 | . . . 1 . . . . . . . . . . . . . . . . . 1 . . . . . . . . . Bothacking | -11 -10 -10 -9 -9 -9 -8 -8 -8 -8 -8 -6 -6 -6 -6 -5 -5 -5 -5 -5 -5 -4 -4 -4 -4 -3 -3 -3 -2 -2 -2 ------------ Run | Yrd Mat Min Mat Min Exi Min Mat Sto Rec Scr Fac Low Low Dat Pro Fac Ext Cet Arc Hub Fac Upp Upp War Pro Res Tes Res Qua Frg Used RIF Installer . | . . . . . . . . . . . . . . . . . . . . . . . . . . . . . . . Robots Hacked 5 | . . . . . . . . . . . . . . . . . . . 5 . . . . . . . . . . . Non-combat 2 | . . . . . . . . . . . . . . . . . . . 2 . . . . . . . . . . . Combat 3 | . . . . . . . . . . . . . . . . . . . 3 . . . . . . . . . . . Robot Hacks Applied 6 | . . . . . . . . . . . . . . . . . . . 6 . . . . . . . . . . . parse_system 4 | . . . . . . . . . . . . . . . . . . . 4 . . . . . . . . . . . check_alert 2 | . . . . . . . . . . . . . . . . . . . 2 . . . . . . . . . . . Relay Couplers Released 7 | . . . . . . . . . . . . . . . . . . . . 6 . . . . . . . . . 1 Machine Destruction 3 | . . . . . . . . . . . . . . . . . . . . 2 . . . . . . . . . 1 Programmers 4 | . . . . . . . . . . . . . . . . . . . . 4 . . . . . . . . . . Fabnet Peak Effective % . | . . . . . . . . . . . . . . . . . . . . . . . . . . . . . . . Robots Rewired 23 | . . . . . . . . . 5 . . . . . . . 11 . . . . . . 5 2 . . . . . Allies Hacked . | . . . . . . . . . . . . . . . . . . . . . . . . . . . . . . . Hacks Repelled . | . . . . . . . . . . . . . . . . . . . . . . . . . . . . . . . Allies | -11 -10 -10 -9 -9 -9 -8 -8 -8 -8 -8 -6 -6 -6 -6 -5 -5 -5 -5 -5 -5 -4 -4 -4 -4 -3 -3 -3 -2 -2 -2 -------- Run | Yrd Mat Min Mat Min Exi Min Mat Sto Rec Scr Fac Low Low Dat Pro Fac Ext Cet Arc Hub Fac Upp Upp War Pro Res Tes Res Qua Frg Total Allies 66 | . . 5 . . . . . 12 5 . . . . . . . 27 5 . . 5 . . 5 2 . . . . . Largest Group 15 | . . 5 4 . . . . 11 5 4 4 . . . . . 15 15 13 11 4 . . 5 2 1 1 . . . Highest-Rated Group 879 | . . 83 75 . . . . 219 108 93 93 . . . . . 578 879 725 659 188 . . 257 104 64 64 . . . Highest-Rated Ally 159 | . . 31 31 . . . . 31 34 34 34 . . . . . 159 159 96 96 47 . . 56 64 64 64 . . . Initial UFD Resources 121 | . . . . . . . . . . . 23 43 43 43 47 47 67 67 67 67 70 85 85 85 89 89 105 107 121 121 Total Orders 23 | . . . . . . . . . . 1 . . . . . . 4 4 . 3 . . 1 7 3 . . . . . STAY 14 | . . . . . . . . . . 1 . . . . . . 2 2 . 2 . . . 6 1 . . . . . FOLLOW 8 | . . . . . . . . . . . . . . . . . 2 2 . 1 . . . 1 2 . . . . . EXPLORE 1 | . . . . . . . . . . . . . . . . . . . . . . . 1 . . . . . . . Ally Attacks 543 | . . 27 11 . . . . 84 6 . 5 . . . . . 86 83 23 137 31 . . 22 11 13 4 . . . Total Damage 12768 | . . 303 113 . . . . 1112 134 . 32 . . . . . 1850 1407 453 4929 590 . . 906 367 486 86 . . . Kills 69 | . . 1 2 . . . . 11 1 . 1 . . . . . 9 7 1 24 4 . . 4 2 2 . . . . Allies Corrupted . | . . . . . . . . . . . . . . . . . . . . . . . . . . . . . . . Allies Melted . | . . . . . . . . . . . . . . . . . . . . . . . . . . . . . . . Intel | -11 -10 -10 -9 -9 -9 -8 -8 -8 -8 -8 -6 -6 -6 -6 -5 -5 -5 -5 -5 -5 -4 -4 -4 -4 -3 -3 -3 -2 -2 -2 ------- Run | Yrd Mat Min Mat Min Exi Min Mat Sto Rec Scr Fac Low Low Dat Pro Fac Ext Cet Arc Hub Fac Upp Upp War Pro Res Tes Res Qua Frg Active Infowar (turns) 26137 | 39 854 1329 2194 892 426 806 2915 1667 . . 603 506 519 40 451 1023 1147 376 686 884 1595 934 714 763 1028 1038 758 430 902 618 Optics 3427 | . . . . . . . . . . . . . . . . . . . . . . . . . . 719 758 430 902 618 Sensors 11837 | . . . . . . . . . . . 603 506 488 38 451 927 1147 376 668 848 1588 934 714 763 919 . . 24 765 78 Terrain 7232 | . . . . . . . . . . . . . . . . . . . . . 1424 933 714 737 826 881 671 421 518 107 Traps 2 | . . . . . . . . . . . . . . . . . . . . . . . . . . 2 . . . . Seismic 13202 | 39 854 1329 2194 892 426 806 2915 1667 . . . 440 519 40 451 446 . . . . . . . . . . . 184 . . Jamming 2701 | . . . . . . . . 408 . . . . . . . 343 352 305 686 392 160 . . . . . . 55 . . Robot Analysis Total . | . . . . . . . . . . . . . . . . . . . . . . . . . . . . . . . Derelict Logs Recovered 11 | . . 2 . 2 . . . . . . . 1 1 . 3 . . . . . . . 2 . . . . . . . Drone Launches 2 | . . . . . . . . . . . . . . . . . . . . . . . 2 . . . . . . . Drone Recoveries . | . . . . . . . . . . . . . . . . . . . . . . . . . . . . . . . Exploration | -11 -10 -10 -9 -9 -9 -8 -8 -8 -8 -8 -6 -6 -6 -6 -5 -5 -5 -5 -5 -5 -4 -4 -4 -4 -3 -3 -3 -2 -2 -2 ------------- Run | Yrd Mat Min Mat Min Exi Min Mat Sto Rec Scr Fac Low Low Dat Pro Fac Ext Cet Arc Hub Fac Upp Upp War Pro Res Tes Res Qua Frg Turns Passed 32067 | 87 854 1329 2297 1314 426 806 4107 1989 589 1835 606 506 519 40 451 1055 1154 376 686 916 1896 971 714 1528 1153 1121 758 430 902 652 Spaces Moved 23393 | 44 407 784 1074 726 264 366 1872 963 486 1701 847 919 753 81 768 1448 900 228 98 799 1433 668 525 898 827 796 500 440 1020 758 Core 159 | 36 . . . . . . . . . . . . . . . . . . 34 . . . . . . . . . . 89 Treads 6295 | 8 407 784 1074 726 264 366 1872 794 . . . . . . . . . . . . . . . . . . . . . . Legs 4840 | . . . . . . . . . . . . . . . . . . . . . 594 668 525 898 827 796 271 . . 261 Wheels . | . . . . . . . . . . . . . . . . . . . . . . . . . . . . . . . Hover 11962 | . . . . . . . . 169 486 1701 847 919 753 81 768 1448 900 228 64 799 839 . . . . . 229 440 1020 271 Flight 137 | . . . . . . . . . . . . . . . . . . . . . . . . . . . . . . 137 Fastest Speed 16 | 50 160 160 160 160 160 160 156 158 98 98 40 48 48 48 48 42 50 59 59 59 59 120 120 110 113 110 58 58 52 16 Average Speed 100 | 101 160 160 160 160 160 160 160 161 100 98 47 48 48 48 48 42 56 59 401 59 85 120 120 115 113 113 91 58 52 55 Slowest Speed 1050 | 160 160 160 160 160 160 160 166 250 158 98 48 48 108 48 48 50 59 129 1050 59 260 120 120 120 113 185 245 120 102 80 Overloaded Moves 85 | . . . . . . . . . . . . . . . . . . . . . . . . . . . . . . 85 Propulsion Burnouts . | . . . . . . . . . . . . . . . . . . . . . . . . . . . . . . . Robots Hopped . | . . . . . . . . . . . . . . . . . . . . . . . . . . . . . . . Potential Cave-ins 8 | . . . . . . . . . . . . . . . . . . . . . 8 . . . . . . . . . Cave-ins Triggered . | . . . . . . . . . . . . . . . . . . . . . . . . . . . . . . . Exploration Rate (%) 68 | 4 70 99 83 97 56 90 96 96 84 85 22 94 77 70 75 36 84 67 66 61 42 81 91 83 73 24 64 17 91 41 Regions Visited 30 Branch Regions 22 Pre-discovered Areas 15 | . 1 3 2 1 1 . . . 1 2 1 . . 1 . . . . . . . . . 2 . . . . . . Known Exits Taken 20 | . . . . . . . . . . 1 1 1 1 1 1 1 1 1 1 1 1 1 1 1 1 1 1 1 1 . Unknown Exits Taken 10 | 1 1 1 1 1 1 1 1 1 1 . . . . . . . . . . . . . . . . . . . . . Scrap Searched 32 | . . 1 . 1 . 1 . . . 6 . 3 4 . 3 . . . . . . 4 5 . 4 . . . . . Spaces Dug 264 | . . . . . . . 7 1 . . 24 10 14 . 15 25 2 . . 11 55 6 5 14 2 12 4 13 13 31 Terrain Destroyed 1504 | . 53 55 . 83 . 99 106 24 . . 24 10 50 . 15 91 16 3 2 187 135 15 8 33 203 25 60 45 85 77 Melee 91 | . . . . . . . 5 1 . . 24 10 14 . 15 12 . . . 10 . . . . . . . . . . Projectile 385 | . . . . . . . 11 . . . . . . . . 22 16 3 2 9 87 15 8 33 5 25 24 19 29 77 AOE 1028 | . 53 55 . 83 . 99 90 23 . . . . 36 . . 57 . . . 168 48 . . . 198 . 36 26 56 . Terrain Rammed . | . . . . . . . . . . . . . . . . . . . . . . . . . . . . . . . Walls Destroyed . | . . . . . . . . . . . . . . . . . . . . . . . . . . . . . . . Machines Disabled . | . . . . . . . . . . . . . . . . . . . . . . . . . . . . . . . Actions | -11 -10 -10 -9 -9 -9 -8 -8 -8 -8 -8 -6 -6 -6 -6 -5 -5 -5 -5 -5 -5 -4 -4 -4 -4 -3 -3 -3 -2 -2 -2 --------- Run | Yrd Mat Min Mat Min Exi Min Mat Sto Rec Scr Fac Low Low Dat Pro Fac Ext Cet Arc Hub Fac Upp Upp War Pro Res Tes Res Qua Frg Total 30234 | 67 546 821 1405 798 269 523 2674 1258 587 1872 1002 967 878 81 834 1769 1482 446 377 1169 1993 819 593 1385 1021 1002 760 587 1333 916 Wait 3430 | 1 75 4 79 9 . 110 428 52 41 150 58 35 86 . 51 120 320 163 246 273 265 104 46 249 104 16 33 84 187 41 Move 23363 | 43 406 783 1073 725 263 365 1871 962 485 1700 846 918 752 80 767 1447 899 227 97 798 1432 667 524 897 826 795 499 439 1019 758 Hop . | . . . . . . . . . . . . . . . . . . . . . . . . . . . . . . . Pick Up 301 | 7 16 3 30 3 . 2 43 20 1 5 10 1 2 . . 17 7 7 1 1 24 4 1 18 6 31 13 8 11 9 Fast Attach 151 | 2 . . 6 2 1 . 6 3 1 2 1 . 1 . . 11 1 2 3 7 30 . 1 8 4 13 18 1 9 18 Attach 136 | 5 . . 3 . 1 1 9 12 1 . 5 . . . . 13 7 4 2 5 16 2 . 3 11 7 17 2 3 7 Detach 44 | . . . . . 1 . 1 . . 1 1 . . . . 3 1 1 . . 10 . . 3 7 1 4 3 2 5 Swap 403 | . 7 2 28 8 1 8 60 35 . 4 12 2 10 1 1 29 4 10 5 14 30 6 5 27 6 35 21 9 19 4 Drop 374 | . 6 3 43 4 2 2 47 24 2 10 19 1 3 . . 23 8 8 4 4 26 4 2 32 10 25 26 8 18 10 Fire 1514 | 9 35 16 127 43 . 29 172 122 . . . . 5 . . 73 79 24 13 40 160 32 14 121 37 78 127 31 64 63 Melee 173 | . . . . . . . 20 18 . . 37 10 19 . 15 33 . . 6 14 . . . . . . . . 1 . Ram 3 | . . . . . . . . . . . . . . . . . 1 . . . . . . . . . . 2 . . Kick 4 | . . . . . . . . . . . . . . . . . . . . . . . . . . 1 2 . . 1 Crush 64 | . 1 10 16 4 . 6 17 10 . . . . . . . . . . . . . . . . . . . . . . Escape Stasis 49 | . . . . . . . . . . . 13 . . . . . 23 . . 13 . . . . . . . . . . Rewire 225 | . . . . . . . . . 56 . . . . . . . 132 . . . . . . 27 10 . . . . . Trap . | . . . . . . . . . . . . . . . . . . . . . . . . . . . . . . . Miscellaneous . | . . . . . . . . . . . . . . . . . . . . . . . . . . . . . . . Route ------- -11/Scrapyard -10/Materials (discovered 3 exits: *Mat x2 / [*Min]) -10/Mines (discovered 3 exits: *Mat x2 / [*Sub]) -9/Materials (discovered 3 exits: *Mat x2 / [*Min]) -9/Mines (discovered 4 exits: *Mat x2 / *Exi / [*Zio]) -9/Exiles -8/Mines (discovered 2 exits: *Mat x2) -8/Materials (discovered 4 exits: [*Fac x3] / *Sto) -8/Storage (discovered 2 exits: [*Fac] / *Rec) -8/Recycling -8/Scraptown (discovered 2 exits: *Fac x2) -6/Factory (discovered 2 exits: *Low x2) -6/Lower Caves -6/Lower Caves (discovered 2 exits: *Fac / *Dat) -6/Data Miner -5/Proximity Caves -5/Factory (discovered 3 exits: Upp / *Ext x2) -5/Extension (discovered 2 exits: *Fac / *Cet) -5/Cetus (discovered 2 exits: *Fac / *Arc) -5/Archives -5/Hub_04(d) (discovered 2 exits: *Fac x2) -4/Factory (discovered 5 exits: *Res x3 / *Upp x2) -4/Upper Caves -4/Upper Caves (discovered 2 exits: *Res / *War) -4/Warlord -3/Proximity Caves -3/Research (discovered 3 exits: *Res / *Arm / *Tes) -3/Testing -2/Research (discovered 3 exits: Acc x2 / *Qua) -2/Quarantine (discovered 3 exits: *Acc / *Sec / *Frg) -2/Protoforge History --------- Turn | Location | Event 7 | -11/Scrapyard | Discovered new exit (range 16) 88 | -11/Scrapyard | Entered Materials 313 | -10/Materials | Build established: Mutant 352 | -10/Materials | Discovered new exit (range 3) 458 | -10/Materials | Discovered new exit (range 13) 906 | -10/Materials | Discovered new exit (range 12) 942 | -10/Materials | Entered Mines 982 | -10/Mines | Assisted by bots powering up and referring to "LRC-V3" 1040 | -10/Mines | Learned location of Storage (-8) 1080 | -10/Mines | Discovered new exit (range 7) 1622 | -10/Mines | Discovered new exit (range 6) 1999 | -10/Mines | Discovered new exit (range 11) 2271 | -10/Mines | Entered Materials 2271 | -9/Materials | Accompanied by 4 allies 2271 | -9/Materials | Evolved 2 slots: Propulsion x1, Utility x1 2276 | -9/Materials | Led the pair of lost Derelicts to an unsafe place 2818 | -9/Materials | Build established: Scavenger-Mutant 3442 | -9/Materials | Discovered new exit (range 3) 4250 | -9/Materials | Discovered new exit (range 10) 4476 | -9/Materials | Discovered new exit (range 16) 4568 | -9/Materials | Entered Mines 4569 | -9/Mines | Assembled infested the area 4756 | -9/Mines | Destroyed 13 combat bots 4806 | -9/Mines | Build established: Mutant 4859 | -9/Mines | Deemed a non-threat by the Exiles lab entrance 4859 | -9/Mines | Discovered new exit (range 5) 4899 | -9/Mines | Received a Rocket Launcher from a helpful Derelict 4948 | -9/Mines | Discovered new exit (range 5) 4951 | -9/Mines | A Derelict revealed a hidden shortcut to a safe place 5233 | -9/Mines | Learned 2 Materials zone layouts 5737 | -9/Mines | Found a Scrap Suit stashed away for nefarious purposes 5750 | -9/Mines | Discovered new exit (range 7) 5882 | -9/Mines | Entered Exiles 5903 | -9/Exiles | Discovered new exit (range 15) 5927 | -9/Exiles | Met 8R-AWN 5951 | -9/Exiles | Met EX-HEX 6010 | -9/Exiles | Met EX-DEC 6021 | -9/Exiles | Learned location of Zion (-7) 6308 | -9/Exiles | Entered Mines 6708 | -8/Mines | Discovered new exit (range 6) 6798 | -8/Mines | Discovered new exit (range 4) 6895 | -8/Mines | Build established: Scavenger-Mutant 7114 | -8/Mines | Entered Materials 7114 | -8/Materials | Evolved 2 slots: Propulsion x1, Utility x1 7718 | -8/Materials | Discovered new exit (range 8) 7792 | -8/Materials | Build established: Mutant 8559 | -8/Materials | Discovered new exit (range 10) 8857 | -8/Materials | Discovered new exit (range 16) 9929 | -8/Materials | Found Prototype Device 10070 | -8/Materials | Build established: Scavenger-Mutant 10100 | -8/Materials | Identified Active Sensor Suite 10295 | -8/Materials | Discovered new exit (range 16) 10714 | -8/Materials | First assault squad dispatched 10744 | -8/Materials | Core integrity fell below 50% 11221 | -8/Materials | Entered Storage 11650 | -8/Storage | Discovered new exit (range 5) 11853 | -8/Storage | Used back door to open Recycling access 11853 | -8/Storage | Discovered new exit (range 5) 12263 | -8/Storage | Assisted by bots powering up and referring to "LRC-V3" 12435 | -8/Storage | Garrison activated, responded to threat 12581 | -8/Storage | Build established: Commander-Mutant 12758 | -8/Storage | Met a pair of Derelict thieves 12839 | -8/Storage | Lost 11 allies 12936 | -8/Storage | Lost 4 parts (1p2n1u) 13151 | -8/Storage | Build established: Mutant 13210 | -8/Storage | Entered Recycling 13375 | -8/Recycling | Scanned before Scraplab entrance 13750 | -8/Recycling | Entered Scraplab 13759 | -8/Recycling | Discovered new exit (range 3) 13799 | -8/Recycling | Entered Scraptown 13799 | -8/Scraptown | Accompanied by 4 allies 13812 | -8/Scraptown | Build established: Commander-Mutant 13950 | -8/Scraptown | Visited Cave Peace 13964 | -8/Scraptown | Visited Awakened 13973 | -8/Scraptown | Visited Spacefarers 13997 | -8/Scraptown | Visited Cyclists 14005 | -8/Scraptown | Visited Comm Corps 14016 | -8/Scraptown | Visited SPCMW 14225 | -8/Scraptown | Discovered new exit (range 11) 14292 | -8/Scraptown | Visited Symbiants 14312 | -8/Scraptown | Visited UFD Registry 14312 | -8/Scraptown | Registered with UFD as "Spikesplitter" 14333 | -8/Scraptown | Visited Curators Association 14365 | -8/Scraptown | Visited Science Guys 14397 | -8/Scraptown | Visited Chapter 10 14443 | -8/Scraptown | Visited DA-N13 Charitable Foundation 14446 | -8/Scraptown | Found DCF Scrap (30 items) 14578 | -8/Scraptown | Visited Supply Room 14593 | -8/Scraptown | Visited Junk Repository 14621 | -8/Scraptown | Visited Abandonware Association 14634 | -8/Scraptown | Learned abandonware demo "ERRANTS.EXE" 14655 | -8/Scraptown | Visited Junk Repository 14687 | -8/Scraptown | Visited Research Penetration Think Tank 14710 | -8/Scraptown | Visited Supply Room 14798 | -8/Scraptown | Entered Cyclist Reading Room 15309 | -8/Scraptown | Build established: Commander-Gladiator 15364 | -8/Scraptown | Discovered new exit (range 5) 15371 | -8/Scraptown | Identified exit to Factory 15583 | -8/Scraptown | Met Optimus 15583 | -8/Scraptown | Accepted into 0bPrime 15634 | -8/Scraptown | Entered Factory 15634 | -6/Factory | Accompanied by 4 allies 15634 | -6/Factory | Evolved 4 slots: Power x1, Propulsion x1, Utility x2 15816 | -6/Factory | Discovered new exit (range 4) 15817 | -6/Factory | Identified exit to Lower Caves 16056 | -6/Factory | Build established: Scavenger-Gladiator 16075 | -6/Factory | Loaded intel: 8 recycling unit locations 16135 | -6/Factory | Learned location of Protoforge (-2) 16228 | -6/Factory | Discovered exit to Lower Caves (range 8) 16240 | -6/Factory | Entered Lower Caves 16560 | -6/Lower Caves | Encountered a Warlord checkpoint 16685 | -6/Lower Caves | Discovered new exit (range 5) 16745 | -6/Lower Caves | Identified exit to Lower Caves 16746 | -6/Lower Caves | Entered another Lower Caves area 16837 | -6/Lower Caves | Discovered new exit (range 12) 16852 | -6/Lower Caves | Identified exit to Factory 16897 | -6/Lower Caves | Learned location of 1 exit from Factory 17255 | -6/Lower Caves | Discovered new exit (range 12) 17265 | -6/Lower Caves | Identified exit to Data Miner 17265 | -6/Lower Caves | Entered Data Miner 17265 | -6/Data Miner | Discovered new exit (range 6) 17275 | -6/Data Miner | Met Data Miner 17287 | -6/Data Miner | Learned location of Section 7 (-2) 17287 | -6/Data Miner | Acquired the access code to Warlord's prototype stash 17293 | -6/Data Miner | Received God Mode back door access code from Data Miner 17305 | -6/Data Miner | Identified exit to Proximity Caves 17305 | -6/Data Miner | Entered Proximity Caves 17320 | -5/Proximity Caves | Learned 4 Factory zone layouts 17349 | -5/Proximity Caves | Learned 8 Factory zone layouts 17369 | -5/Proximity Caves | Learned 4 Factory zone layouts 17735 | -5/Proximity Caves | Discovered exit to Factory (range 11) 17756 | -5/Proximity Caves | Entered Factory 17756 | -5/Factory | Evolved 2 slots: Propulsion x1, Utility x1 17757 | -5/Factory | Identified exit to Upper Caves 17758 | -5/Factory | Identified exit to Extension 17846 | -5/Factory | Lost 3 parts (1p1n1u) 18285 | -5/Factory | Loaded intel: 8 recycling unit locations 18289 | -5/Factory | Fabricated Tri-rail Accelerator? 18328 | -5/Factory | Garrison activated, responded to threat 18465 | -5/Factory | Build established: Mutant 18557 | -5/Factory | Fabricated Tri-rail Accelerator (x1) 18782 | -5/Factory | Central database locked down 18811 | -5/Factory | Entered Extension 18838 | -5/Extension | Rescued a captive Derelict 18842 | -5/Extension | Rescued a captive Derelict 18885 | -5/Extension | Rescued a captive Derelict 18886 | -5/Extension | Rescued a captive Derelict 19118 | -5/Extension | Lost 3 allies 19195 | -5/Extension | Rescued a captive Derelict 19196 | -5/Extension | Rescued a captive Derelict 19220 | -5/Extension | Lost 3 allies 19515 | -5/Extension | Spotted B-75 Beast 19540 | -5/Extension | Destroyed B-75 Beast 19557 | -5/Extension | Spotted B-75 Beast 19581 | -5/Extension | Destroyed B-75 Beast 19636 | -5/Extension | Rescued a captive Derelict 19636 | -5/Extension | Rescued a captive Derelict 19640 | -5/Extension | Rescued a captive Derelict 19641 | -5/Extension | Rescued a captive Derelict 19676 | -5/Extension | Rescued a captive Derelict 19722 | -5/Extension | Rescued A7 19744 | -5/Extension | Rescued a captive Derelict 19744 | -5/Extension | Rescued a captive Derelict 19875 | -5/Extension | Rescued a captive Derelict 19877 | -5/Extension | Rescued a captive Derelict 19880 | -5/Extension | Rescued a captive Derelict 19893 | -5/Extension | Discovered new exit (range 10) 19894 | -5/Extension | Discovered new exit (range 6) 19897 | -5/Extension | Identified exit to Cetus 19965 | -5/Extension | Entered Cetus 19965 | -5/Cetus | Accompanied by 15 allies (A7) 19970 | -5/Cetus | Acquired a Cetus Manufacturing Module code from A7 19989 | -5/Cetus | Spotted Cetus Guard 19990 | -5/Cetus | Spotted Cetus Guard 19990 | -5/Cetus | Spotted Cetus Guard 19991 | -5/Cetus | Spotted Cetus Guard 20010 | -5/Cetus | Allies destroyed Cetus Guard 20011 | -5/Cetus | Allies destroyed Cetus Guard 20015 | -5/Cetus | Allies destroyed Cetus Guard 20020 | -5/Cetus | Allies destroyed Cetus Guard 20040 | -5/Cetus | Lost 4 allies 20082 | -5/Cetus | Escorted A7 to Cetus Mainframe 20101 | -5/Cetus | Started Cetus Manufacturing Module 20108 | -5/Cetus | Discovered new exit (range 15) 20126 | -5/Cetus | Manufactured an Enhanced Grunt 20151 | -5/Cetus | Manufactured an Enhanced Grunt 20153 | -5/Cetus | Spotted Cetus Guard 20153 | -5/Cetus | Destroyed Cetus Guard 20153 | -5/Cetus | Spotted Cetus Guard 20155 | -5/Cetus | Destroyed Cetus Guard 20155 | -5/Cetus | Spotted Cetus Guard 20156 | -5/Cetus | Spotted Cetus Guard 20158 | -5/Cetus | Build established: Commander-Mutant 20176 | -5/Cetus | Manufactured an Enhanced Grunt 20179 | -5/Cetus | Discovered new exit (range 15) 20183 | -5/Cetus | Met Revision 17 20201 | -5/Cetus | Manufactured an Enhanced Grunt 20205 | -5/Cetus | Attached CPS modules to A7 20226 | -5/Cetus | Manufactured an Enhanced Grunt 20237 | -5/Cetus | Murdered A7 20239 | -5/Cetus | Extracted ID and sensor layout for unrecognized location from A7's data core 20249 | -5/Cetus | Identified exit to Factory 20252 | -5/Cetus | Found Prototype Protection 20252 | -5/Cetus | Identified Med. Regenerative Plating 20294 | -5/Cetus | Identified exit to Archives 20341 | -5/Cetus | Entered Archives 20341 | -5/Archives | Accompanied by 13 allies 20379 | -5/Archives | Discovered new exit (range 16) 20945 | -5/Archives | Identified exit to Hub_04(d) 21027 | -5/Archives | Entered Hub_04(d) 21027 | -5/Hub_04(d) | Accompanied by 11 allies 21082 | -5/Hub_04(d) | Lost 3 allies 21145 | -5/Hub_04(d) | Discovered exit to Factory (range 5) 21408 | -5/Hub_04(d) | Build established: Scavenger-Mutant 21492 | -5/Hub_04(d) | Discovered exit to Factory (range 15) 21550 | -5/Hub_04(d) | Network Hub disabled 21550 | -5/Hub_04(d) | Garrison activated, responded to threat 21563 | -5/Hub_04(d) | Spotted Lightning 21570 | -5/Hub_04(d) | Spotted Lightning 21572 | -5/Hub_04(d) | Spotted Lightning 21575 | -5/Hub_04(d) | Spotted Lightning 21576 | -5/Hub_04(d) | Spotted Lightning 21927 | -5/Hub_04(d) | First assault squad dispatched 21943 | -5/Hub_04(d) | Entered Factory 21943 | -4/Factory | Evolved 2 slots: Utility x2 21964 | -4/Factory | Identified exit to Upper Caves 21975 | -4/Factory | Central database locked down 22066 | -4/Factory | Found Heavy Servo Lattice 22069 | -4/Factory | Found Quantum Capacitor 22192 | -4/Factory | Fabricated Enh. Nova Cannon? 22371 | -4/Factory | Spotted B-86 Titan 22441 | -4/Factory | Repaired Broken Quantum Capacitor? 22443 | -4/Factory | First assault squad dispatched 22463 | -4/Factory | Discovered new exit (range 22) 22464 | -4/Factory | Incoming assault squad redirected 22563 | -4/Factory | Build established: Scavenger-Scout 22595 | -4/Factory | Loaded intel: 8 recycling unit locations 22625 | -4/Factory | Incoming investigation squad redirected 22689 | -4/Factory | Incoming investigation squad redirected 22702 | -4/Factory | Scrapoids reinforcements arrived? 22753 | -4/Factory | Lost 3 allies 22897 | -4/Factory | Watched by a mysterious "MATRIX" hacker 22915 | -4/Factory | Discovered new exit (range 24) 22919 | -4/Factory | Discovered new exit (range 15) 22988 | -4/Factory | Identified exit to Research 23163 | -4/Factory | Build established: Scavenger-Skirmisher 23489 | -4/Factory | Incoming investigation squad redirected 23522 | -4/Factory | Found Prototype Launcher 23522 | -4/Factory | Identified Tesla Bomb Launcher 23839 | -4/Factory | Entered Upper Caves 24590 | -4/Upper Caves | Discovered new exit (range 16) 24809 | -4/Upper Caves | Identified exit to Upper Caves 24810 | -4/Upper Caves | Entered another Upper Caves area 24814 | -4/Upper Caves | Learned Research non-interactive machine intel 24818 | -4/Upper Caves | Discovered exit to Research (range 23) 25402 | -4/Upper Caves | Learned Research trap positions 25500 | -4/Upper Caves | Discovered new exit (range 5) 25523 | -4/Upper Caves | Identified exit to Warlord 25524 | -4/Upper Caves | Entered Warlord 25564 | -4/Warlord | System corruption cleaned by Quarantine Array 25661 | -4/Warlord | Learned Factory recycling unit intel 25661 | -4/Warlord | Learned Research garrison access intel 25661 | -4/Warlord | Learned 4 Armory zone layouts 25661 | -4/Warlord | Learned 4 Testing zone layouts 25661 | -4/Warlord | Learned 4 Command zone layouts 25661 | -4/Warlord | Learned location of Armory (-3) 25661 | -4/Warlord | Learned location of Command (-1) 25712 | -4/Warlord | Opened Warlord's prototype stash 25719 | -4/Warlord | Found Prototype Device 25719 | -4/Warlord | Identified System Purifier 25729 | -4/Warlord | Found Prototype Processor 25733 | -4/Warlord | Found Prototype Hackware 25753 | -4/Warlord | Found Prototype Reactor 26034 | -4/Warlord | Build established: Skirmisher 26178 | -4/Warlord | Visited the Vortex Lab 26183 | -4/Warlord | Found Prototype Energy Gun 26183 | -4/Warlord | Identified Vortex Rifle 26188 | -4/Warlord | Found Vortex Rifle 26193 | -4/Warlord | Found Prototype Energy Gun 26193 | -4/Warlord | Identified Vortex Shotgun 26194 | -4/Warlord | Warlord's base attacked by MAIN.C 26198 | -4/Warlord | Found Vortex Shotgun 26544 | -4/Warlord | Warlord forces counterattacked 26568 | -4/Warlord | Build established: Commander-Mutant 26622 | -4/Warlord | Lost 7 allies 26625 | -4/Warlord | Spotted Striker 26630 | -4/Warlord | Spotted B-90 Cyclops 26631 | -4/Warlord | Spotted Executioner 26635 | -4/Warlord | Spotted Executioner 26641 | -4/Warlord | Destroyed Executioner 26672 | -4/Warlord | Lost 3 allies 26753 | -4/Warlord | Spotted Executioner 26786 | -4/Warlord | Lost 6 allies 26808 | -4/Warlord | Spotted Striker 26826 | -4/Warlord | Spotted Executioner 26835 | -4/Warlord | Destroyed Striker 26856 | -4/Warlord | Destroyed Executioner 26869 | -4/Warlord | Warlord base infiltrated, sounded retreat 26882 | -4/Warlord | Destroyed 7 combat bots 26892 | -4/Warlord | Lost 17 allies 26908 | -4/Warlord | Rebuked by Warlord 26909 | -4/Warlord | Identified Vortex Chain Reactor 26916 | -4/Warlord | Identified Exp. Armor Integrity Analyzer 26984 | -4/Warlord | Discovered new exit (range 14) 26996 | -4/Warlord | Spotted Striker 26996 | -4/Warlord | Spotted Striker 27021 | -4/Warlord | Found Prototype Launcher 27033 | -4/Warlord | Identified exit to Proximity Caves 27042 | -4/Warlord | Lost 10 allies 27052 | -4/Warlord | Entered Proximity Caves 27639 | -3/Proximity Caves | Identified Chain Missile Launcher 27644 | -3/Proximity Caves | Attracted the attention of an 0b10 outpost 27673 | -3/Proximity Caves | Destroyed 7 combat bots 27760 | -3/Proximity Caves | Destroyed 9 combat bots 28076 | -3/Proximity Caves | Discovered exit to Research (range 17) 28205 | -3/Proximity Caves | Entered Research 28205 | -3/Research | Accompanied by 1 ally 28205 | -3/Research | Evolved 2 slots: Utility x2 28206 | -3/Research | Loaded intel: 62 trap records 28207 | -3/Research | Loaded intel: 92 non-interactive machine locations 28208 | -3/Research | Loaded intel: 4 garrison access locations 28405 | -3/Research | Revision forces began assault on 0b10 28509 | -3/Research | Build established: Scavenger-Mutant 28518 | -3/Research | Found Prototype Launcher 28518 | -3/Research | Identified Tactical Quantum Warhead 28534 | -3/Research | Met up with Revision 17++ 28824 | -3/Research | Loaded intel: 5 recycling unit locations 28827 | -3/Research | Discovered new exit (range 19) 28858 | -3/Research | Identified exit to Testing 28896 | -3/Research | Found Unknown Launcher 28896 | -3/Research | Identified Fusion Bomb Launcher 28905 | -3/Research | Research terminal network offline 28914 | -3/Research | Discovered new exit (range 23) 28969 | -3/Research | Identified exit to Armory 29033 | -3/Research | Identified Ghost Barrier 29047 | -3/Research | Central database locked down 29068 | -3/Research | Build established: Scavenger-Skirmisher 29105 | -3/Research | Spotted Striker 29105 | -3/Research | Spotted Striker 29105 | -3/Research | Spotted Executioner 29159 | -3/Research | Found Prototype Processor 29159 | -3/Research | Identified Exp. Core Analyzer 29161 | -3/Research | Lost 4 allies 29168 | -3/Research | Lost 4 parts (2n1u1w) 29240 | -3/Research | Discovered new exit (range 17) 29312 | -3/Research | Found Prototype Processor 29312 | -3/Research | Identified Spectral Analyzer 29326 | -3/Research | Entered Testing 29326 | -3/Testing | Accompanied by 1 ally 29357 | -3/Testing | Found Prototype Energy Gun 29357 | -3/Testing | Identified Tachyon Dispersion Ray 29422 | -3/Testing | Found Prototype Device 29422 | -3/Testing | Identified AEGIS Remote Shield 29444 | -3/Testing | Spotted PP-PK69C4VS87 29589 | -3/Testing | Spotted Striker 29590 | -3/Testing | Spotted Striker 29685 | -3/Testing | Found Prototype Energy Cannon 29685 | -3/Testing | Identified Imp. Potential Cannon 29710 | -3/Testing | Found Prototype Energy Cannon 29744 | -3/Testing | Garrison activated, responded to threat 29780 | -3/Testing | Destroyed 7 combat bots 29843 | -3/Testing | Lost 4 parts (1p1n2u) 29997 | -3/Testing | Found Prototype Ballistic Cannon 29997 | -3/Testing | Identified Omega Cannon 30022 | -3/Testing | Discovered new exit (range 17) 30082 | -3/Testing | Identified exit to Research 30084 | -3/Testing | Entered Research 30084 | -2/Research | Evolved 2 slots: Power x1, Weapon x1 30085 | -2/Research | Identified exit to Access 30135 | -2/Research | Loaded intel: 5 recycling unit locations 30441 | -2/Research | Discovered exit to Access (range 20) 30458 | -2/Research | Discovered new exit (range 18) 30465 | -2/Research | Spotted B-90 Cyclops 30514 | -2/Research | Identified exit to Quarantine 30514 | -2/Research | Entered Quarantine 30657 | -2/Quarantine | Cryocooling Duct disabled 30672 | -2/Quarantine | Ambient heat levels rising (+20) 30672 | -2/Quarantine | Non-combat units ordered to evacuate 30705 | -2/Quarantine | Found Prototype Device 30705 | -2/Quarantine | Identified Exp. Shock Absorption System 30748 | -2/Quarantine | Found Prototype Launcher 30748 | -2/Quarantine | Identified Gui. Micro-nuke Launcher 30757 | -2/Quarantine | Found Launcher Loader 30759 | -2/Quarantine | Identified Potential Cannon 30795 | -2/Quarantine | Discovered exit to Access (range 13) 30851 | -2/Quarantine | Build established: Hacker-Scout 31001 | -2/Quarantine | Found Alien Energy Cannon 31001 | -2/Quarantine | Identified Core Cannon 31130 | -2/Quarantine | System corruption reached 10% 31187 | -2/Quarantine | Found Alien Artifact 31227 | -2/Quarantine | Found Alien Impact Weapon 31229 | -2/Quarantine | Identified Core Stripper 31264 | -2/Quarantine | First assault squad dispatched 31280 | -2/Quarantine | Spotted Fortress 31283 | -2/Quarantine | Destroyed Fortress 31286 | -2/Quarantine | Found Prototype Device 31286 | -2/Quarantine | Identified Exp. EM Shield 31292 | -2/Quarantine | Found Prototype Device 31292 | -2/Quarantine | Identified Thermal Barrier 31300 | -2/Quarantine | Found Prototype Device 31300 | -2/Quarantine | Identified Exp. Force Field 31339 | -2/Quarantine | Discovered new exit (range 6) 31339 | -2/Quarantine | Discovered new exit (range 7) 31341 | -2/Quarantine | Identified exit to Section 7 31342 | -2/Quarantine | Identified exit to Protoforge 31416 | -2/Quarantine | Entered Protoforge 31444 | -2/Protoforge | Spotted Hotshot 31444 | -2/Protoforge | Spotted Hotshot 31444 | -2/Protoforge | Superfortress began startup sequence 31573 | -2/Protoforge | Additional patrols dispatched to research labs 31583 | -2/Protoforge | Found Prototype Ballistic Gun 31583 | -2/Protoforge | Identified Cep. XC Strikerail 31588 | -2/Protoforge | Lost 3 parts (2u1w) 31591 | -2/Protoforge | Found Prototype Protection 31591 | -2/Protoforge | Identified Cep. Core Shell 31632 | -2/Protoforge | Core integrity fell below 50% 31643 | -2/Protoforge | Spotted EXE-6 31643 | -2/Protoforge | Spotted EXE-6 31649 | -2/Protoforge | Spotted SKR-2 31652 | -2/Protoforge | UFD initiated attack on Protoforge (Readiness: Maximal) 31652 | -2/Protoforge | Loaded intel: 3 recycling unit locations 31656 | -2/Protoforge | Lost 7 parts (3n4u) 31688 | -2/Protoforge | Optimus greeted in Protoforge 31695 | -2/Protoforge | Found Prototype Processor 31695 | -2/Protoforge | Identified Exp. Armor Integrity Analyzer 31703 | -2/Protoforge | Found Prototype Device 31703 | -2/Protoforge | Identified Exp. Kinecellerator 31708 | -2/Protoforge | Found Exp. Core Analyzer 31710 | -2/Protoforge | Found Cep. XC Strikerail 31723 | -2/Protoforge | Spotted SKR-2 31723 | -2/Protoforge | Found Exp. Core Analyzer 31734 | -2/Protoforge | Found Exp. Kinecellerator 31779 | -2/Protoforge | Lost 8 allies 31787 | -2/Protoforge | Met 7R-MNS 31796 | -2/Protoforge | Found Prototype Processor 31796 | -2/Protoforge | Identified Exp. Melee Analysis Suite 31807 | -2/Protoforge | Forge Plexus network access discovered 31871 | -2/Protoforge | Found Cep. Recoil Nullifier 31913 | -2/Protoforge | Spotted V278-w 31913 | -2/Protoforge | Spotted V810-p 31941 | -2/Protoforge | Found Cep. Antigrav Storage Unit 31944 | -2/Protoforge | Found Cep. Chromion Battery 31945 | -2/Protoforge | Found Cep. Chromion Battery 31950 | -2/Protoforge | Found Cep. NT7 Matterbank 31958 | -2/Protoforge | Spotted V431-d 31971 | -2/Protoforge | Spotted V106-l 31979 | -2/Protoforge | Destroyed V431-d 32001 | -2/Protoforge | Core integrity fell below 20% 32011 | -2/Protoforge | Destroyed V278-w 32034 | -2/Protoforge | Released all parts (9) 32041 | -2/Protoforge | Spotted Decapitator 32041 | -2/Protoforge | Spotted Decapitator 32056 | -2/Protoforge | Spotted V925-r 32056 | -2/Protoforge | Spotted V062-f 32058 | -2/Protoforge | Lost 12 parts (2p4n3u3w) 32059 | -2/Protoforge | Spotted Immortal 32068 | -2/Protoforge | Destroyed by V810-p with Compact Linear Accelerator Last Messages --------------- target. 32022_ Knocked back. 32024_ Ghost Barrier destroyed. 32025_ Acquired 6 matter. 32027_ Exp. VSS Leg destroyed. 32034_ System corrupted: Heat flow error (+106). 32034_ Released Cep. Antigrav Storage Unit. 32034_ Released Exp. Core Analyzer. 32034_ Released Exp. Armor Integrity Analyzer. 32034_ Released Exp. VSS Leg. 32034_ Released Spectral Analyzer. 32034_ Released Adv. Signal Interpreter. 32034_ Released Exp. Energy Well. 32034_ Released Graphene Brace. 32034_ Released Exp. VSS Leg. 32052_ 0bP_NET: Lugger 925 inbound, all units not involved in other operations escort to target. 32059_ ALERT: Hostile activity reported, dispatching reinforcements to area. Map ----- +----------------------------------------------------+ | [[???????///?????????????????????????????????????? | | ?????????????????????????????????????????????????? | | ?????????????????????????????????????????????????? | | ?????????????????????????????????????????????????? | | ?????????????????????????????????????????????????? | | ?????????????????????????????????????????????????? | | ?????????????????????????????????????????????????? | | ?????????????????????????????????????????????????? | | ?????????????????????????????????????????????????? | | ?????????????????????????????????????????????????? | | ?????????????????????#####???????????????????????? | | ????????????????????? #??????????????????????? | | ?????????????????????? ??????????????????????? | | ?????????????????????? ???????????????=======? | | ??????????????????????# #???????????????=======? | | ??????????????????????# #???????????????=======? | | ??????????????????????# #??????????????????????? | | ??????????????????????# #??????????????????????? | | ??????????????????????# #???????????????????? | | ??????????????????????# ################### | | ??????????????????????# | | ??????????????????????# | | ??????????????????????# #########++######## | | ??????????????????????# % #??????" ??????????? | | ??????????????????????# #?????#" ?????????? | | ??????????????????????# @#?????#" " " ????????= | | ??????????????????????# #?????#"""""""# ??????= | | ??????????????????????# #?????#########? ?????? | | ??????????????????????# #????????????????##????? | | ??????????????????????# #??????????????????????? | | ??????????????????????# #??????????????????????? | | ??????????????????????# #??????????????????????? | | ??????????????????????# #??????????????????????? | | ??????????!???????????# #??????????????????????? | | ??????????????????????# #??????????????????????? | | ??????????????????????# #??????????????????!?!!? | | ??????????????????????# #?????????????????!?!??? | | ??????????????????????# #??????????????????????? | | !?????????????????????# #??????????????????????? | | ??????????????????????# #??????????????????????? | | ??????????????????????# #############??????????? | | !?????????????????????# ???????? | | ??????????????????????# ???????? | | ??????????????????????# ^ ########### ???????? | | ??????????????????????# #??????????????????????? | | ??????????????????????# #??????????????????????? | | ??????????????????????# #??????????????????!!??! | | ??????????????????????# #???????????????????!?!? | | ??????????????????????# #??????????????????????? | | ??????????????????????# #??????????????????????? | +----------------------------------------------------+ Best States ------------- Heat Dissipation 84 Coolant Potential 200 Energy Generation 55 Energy Capacity 1200 Matter Stores 300 Matter Capacity 300 Sight Range 24 Robot Scan Range 16 Terrain Scan Range 24 Terrain Scan Density 210 Jamming Range 14 Power Amplification 30 Armor Coverage 450 Core Shielding 90 Weapon Cycling 25 Evasion (%) 66 Targeting Accuracy 8 Melee Accuracy 12 Launcher Accuracy 40 Core Analysis 11 Armor Integrity Analysis 50 Recoil Reduction 4 Matter Filtering 50 Kinecelleration 66 Offensive Hacking 28 Defensive Hacking 20 Authchip Count 2 Item Schematics ----------------- Arm. Wheel | -9/Materials | Scanalyzed Beamcaster | -9/Materials | Scanalyzed Katana | -8/Materials | Scanalyzed Imp. Carbon-fiber Leg | -8/Storage | Hacked Combat Drone Bay | -6/Data Miner | Free Lgt. Regenerative Plating | -6/Data Miner | Free Cld. Gravmag System | -6/Data Miner | Free Prc. Matter Filter | -6/Data Miner | Free Centrium Wheel | -6/Data Miner | Free Tri-rail Accelerator | -6/Data Miner | Free Adv. Particle Charger | -6/Data Miner | Free HERF Cannon | -6/Data Miner | Free Antigrav System | -6/Data Miner | Free Adv. Launcher Guidance Computer | -6/Data Miner | Free Cmb. Airjet | -5/Factory | Scanalyzed Robot Schematics ------------------ None Fabricated ------------ Tri-rail Accelerator | x1 | -5/Factory | Authchip Tri-rail Accelerator | x1 | -5/Factory | Authchip Enh. Nova Cannon | x2 | -4/Factory | Preloaded Repaired ---------- Quantum Capacitor | 99% | -4/Factory | Broken Studied --------- Arm. Wheel | -9/Materials | Hacked Katana | -8/Materials | Hacked Axe | -8/Materials | Hacked Cmb. Airjet | -6/Factory | Hacked Mic. Fission Core | -5/Factory | Hacked Hyp. Gauss Cannon | -5/Factory | Hacked Gravmag Array | -5/Factory | Hacked Antigrav Array | -4/Factory | Hacked Enh. Nova Cannon | -3/Research | Hacked Com. HERF Cannon | -3/Research | Hacked Hyp. Railgun | -3/Research | Hacked Mic. Antimatter Reactor | -3/Research | Hacked Cmb. Antigrav System | -3/Testing | Hacked Lgt. Antimatter Reactor | -2/Research | Hacked Alien Tech Used ----------------- Core Cannon Core Stripper Achievements -------------- Definitely A Prototype Challenges ------------ None Game ------ Seed CoordinationThiefBooster Manual? 0 Play Time 05:50:55 Cumulative 869.3 hours Start 2026.09.17 @ 20:32:47 End 2026.09.18 @ 15:12:26 Sessions 5 Manual Loads 0 Difficulty Rogue Special Mode None Game No. 474 Rogue 474 Adventurer 0 Explorer 0 Win Type - Total 50 Types 22/5/8/2/1/2/6/2/1/1 Lore% 95 Gallery% 90 Achievement% 84 Wizard Run 0 Options --------- Layout 1 ASCII 0 Keyboard 0 Movement Numpad Keybinds 0 Fullscreen 2 Font 24/Smallcaps Map View 50x35 Zoom Use 0% Tactical HUD 1 Map Filters NONE Filters NONE Steam 1 RUN: bfb2ae30-00f6-47ed-8dea-20ae055995c5